Workbook

Sheet Sheet1
C1: 2016 COMP REG
C2: NOVEMBER 1, 2015 Registrations
B3: TA=Term. April
B4: TO=Term. October
C5: COMPENSATED | AC5: GRAND TOTALS PD COVERING MAY 1, 11-Oct 31, 11
D6: Filing | E6: PD ONE | J6: Exp | K6: TOTAL | M6: All Other | N6: Lobbying Exp | O6: Backed Out | P6: NET TOTAL | Q6: BEGIN PD TWO | R6: Total | V6: Exp | W6: Total | Y6: All Other | Z6: Lobbying Exp | AA6: Backed Out | AB6: NET TOTAL
B7: Lobbyist | C7: Client | D7: CODE | E7: Compensation | F7: Reimb | G7: Recpt | H7: Entmnt | I7: Gifts | J7: all LB | K7: SECTION E | L7: Fees | M7: Exp | N7: Total PD ONE | O7: Exp PD ONE | P7: PD ONE | Q7: Compensation | R7: Reim | S7: Reception | T7: Entertain | U7: Gifts | V7: for All LB | W7: SECTION E | X7: Fees | Y7: Exp | Z7: Total PD TWO | AA7: Exp PD TWO | AB7: PD TWO
A10: 2016 | B10: 1816 Inc. | C10: Assn of IN Counties | D10: TA | E10: 6165.77 | F10: 0 | G10: 0 | H10: 0 | I10: 0 | J10: 0 | K10: 0 | L10: 0 | M10: 0 | N10: =SUM(E10:M10) -> 6165.77 | O10: 6165.77 | P10: =SUM(N10-O10) -> 0 | Z10: =SUM(Q10:Y10) -> 0 | AB10: =SUM(Z10-AA10) -> 0 | AC10: =SUM(P10+AB10) -> 0
B11: RRUAYR 10/11/16 | C11: City of Lawrenceburg | D11: P2 | N11: 0 | O11: 0 | P11: 0 | Q11: 523.08 | R11: 0 | S11: 0 | T11: 0 | U11: 0 | V11: 0 | W11: 0 | X11: 0 | Y11: 0 | Z11: 523.08 | AA11: 523.08 | AB11: 0 | AC11: 0
C12: Coalition growing & Suburban Schools | E12: 6786.6 | F12: 0 | G12: 0 | H12: 0 | I12: 0 | J12: 0 | K12: 0 | L12: 0 | M12: 0 | N12: =SUM(E12:M12) -> 6786.6 | O12: 6786.6 | P12: =SUM(N12-O12) -> 0 | Q12: 1448.08 | R12: 0 | S12: 0 | T12: 0 | U12: 0 | V12: 0 | W12: 0 | X12: 0 | Y12: 0 | Z12: =SUM(Q12:Y12) -> 1448.08 | AA12: 1448.08 | AB12: =SUM(Z12-AA12) -> 0 | AC12: =SUM(P12+AB12) -> 0
C13: DraftKings Inc. | E13: 6809.82 | F13: 0 | G13: 0 | H13: 0 | I13: 0 | J13: 0 | K13: 0 | L13: 0 | M13: 0 | N13: =SUM(E13:M13) -> 6809.82 | O13: 6809.82 | P13: 0 | Q13: 1448.08 | R13: 0 | S13: 0 | T13: 0 | U13: 0 | V13: 0 | W13: 0 | X13: 0 | Y13: 0 | Z13: 1448.08 | AA13: 1448.08 | AB13: 0 | AC13: 0
C14: Elkhart Co Convention Visitors Bur | D14: TA | E14: 6165.77 | F14: 0 | G14: 0 | H14: 0 | I14: 0 | J14: 0 | K14: 0 | L14: 0 | M14: 0 | N14: 6165.77 | O14: 6165.77 | P14: 0 | Z14: 0 | AB14: 0 | AC14: 0
C15: FanDuel Inc. | E15: 6809.82 | F15: 0 | G15: 0 | H15: 0 | I15: 0 | J15: 0 | K15: 0 | L15: 0 | M15: 0 | N15: 6809.82 | O15: 6809.82 | P15: 0 | Q15: 1448.08 | R15: 0 | S15: 0 | T15: 0 | U15: 0 | V15: 0 | W15: 0 | X15: 0 | Y15: 0 | Z15: 1448.08 | AA15: 1448.08 | AB15: 0 | AC15: 0
C16: Fort Wayne City Utilities | E16: 6809.82 | F16: 0 | G16: 0 | H16: 0 | I16: 0 | J16: 0 | K16: 0 | L16: 0 | M16: 0 | N16: =SUM(E16:M16) -> 6809.82 | O16: 6809.82 | P16: =SUM(N16-O16) -> 0 | Q16: 1448.08 | R16: 0 | S16: 0 | T16: 0 | U16: 0 | V16: 0 | W16: 0 | X16: 0 | Y16: 0 | Z16: =SUM(Q16:Y16) -> 1448.08 | AA16: 1448.08 | AB16: =SUM(Z16-AA16) -> 0 | AC16: =SUM(P16+AB16) -> 0
C17: IN Assn of Beverage Retailers | E17: 6524.1 | F17: 0 | G17: 0 | H17: 0 | I17: 0 | J17: 0 | K17: 0 | L17: 0 | M17: 0 | N17: =SUM(E17:M17) -> 6524.1 | O17: 6524.1 | P17: 0 | Q17: 1448.08 | R17: 0 | S17: 0 | T17: 0 | U17: 0 | V17: 0 | W17: 0 | X17: 0 | Y17: 0 | Z17: 1448.08 | AA17: 1448.08 | AB17: 0 | AC17: 0
C18: John Frick & Associates | D18: TA | E18: 3910 | F18: 0 | G18: 0 | H18: 0 | I18: 0 | J18: 0 | K18: 0 | L18: 0 | M18: 0 | N18: =SUM(E18:M18) -> 3910 | O18: 3910 | P18: =SUM(N18-O18) -> 0 | Z18: =SUM(Q18:Y18) -> 0 | AB18: =SUM(Z18-AA18) -> 0 | AC18: =SUM(P18+AB18) -> 0
C19: New Centaur | E19: 6809.82 | F19: 0 | G19: 0 | H19: 0 | I19: 0 | J19: 0 | K19: 0 | L19: 0 | M19: 0 | N19: 6809.82 | O19: 6809.82 | P19: 0 | Q19: 1448.08 | R19: 0 | S19: 0 | T19: 0 | U19: 0 | V19: 0 | W19: 0 | X19: 0 | Y19: 0 | Z19: 1448.08 | AA19: 1448.08 | AB19: 0 | AC19: 0
C20: Northern IN Public Service Company | E20: 6809.82 | F20: 0 | G20: 0 | H20: 0 | I20: 0 | J20: 0 | K20: 0 | L20: 0 | M20: 0 | N20: 6809.82 | O20: 6809.82 | P20: 0 | Q20: 1448.08 | R20: 0 | S20: 0 | T20: 0 | U20: 0 | V20: 0 | W20: 0 | X20: 0 | Y20: 0 | Z20: 1448.08 | AA20: 1448.08 | AB20: 0 | AC20: 0
C21: Northern IN Tourism Dev Commission | E21: 6809.82 | F21: 0 | G21: 0 | H21: 0 | I21: 0 | J21: 0 | K21: 0 | L21: 0 | M21: 0 | N21: 6809.82 | O21: 6809.82 | P21: 0 | Q21: 1448.08 | R21: 0 | S21: 0 | T21: 0 | U21: 0 | V21: 0 | W21: 0 | X21: 0 | Y21: 0 | Z21: 1448.08 | AA21: 1448.08 | AB21: 0 | AC21: 0
C22: non client expenses | E22: 0 | F22: 0 | G22: 0 | H22: 674.06 | I22: 0 | J22: 503.73 | K22: 0 | L22: 0 | M22: 0 | N22: =SUM(E22:M22) -> 1177.79 | O22: 1177.79 | P22: =SUM(N22-O22) -> 0 | Q22: 0 | R22: 0 | S22: 0 | T22: 0 | U22: 0 | V22: 0 | W22: 0 | X22: 0 | Y22: 0 | Z22: =SUM(Q22:Y22) -> 0 | AA22: 0 | AB22: =SUM(Z22-AA22) -> 0 | AC22: =SUM(P22+AB22) -> 0
C23: Suburban Health Organization | E23: 6524.1 | F23: 0 | G23: 0 | H23: 0 | I23: 0 | J23: 0 | K23: 0 | L23: 0 | M23: 0 | N23: 6524.1 | O23: 6524.1 | P23: 0 | Q23: 1448.08 | R23: 0 | S23: 0 | T23: 0 | U23: 0 | V23: 0 | W23: 0 | X23: 0 | Y23: 0 | Z23: 1448.08 | AA23: 1448.08 | AB23: 0 | AC23: 0
C24: Tesla Motors Inc. | E24: 4268.33 | F24: 0 | G24: 0 | H24: 0 | I24: 0 | J24: 0 | K24: 0 | L24: 0 | M24: 0 | N24: 4268.33 | O24: 4268.33 | P24: 0 | Q24: 1448.08 | R24: 0 | S24: 0 | T24: 0 | U24: 0 | V24: 0 | W24: 0 | X24: 0 | Y24: 0 | Z24: 1448.08 | AA24: 1448.08 | AB24: 0 | AC24: 0
C25: Verizon Communications | E25: 6524.1 | F25: 0 | G25: 0 | H25: 0 | I25: 0 | J25: 0 | K25: 0 | L25: 0 | M25: 0 | N25: =SUM(E25:M25) -> 6524.1 | O25: 6524.1 | P25: =SUM(N25-O25) -> 0 | Q25: 1448.08 | R25: 0 | S25: 0 | T25: 0 | U25: 0 | V25: 0 | W25: 0 | X25: 0 | Y25: 0 | Z25: =SUM(Q25:Y25) -> 1448.08 | AA25: 1448.08 | AB25: =SUM(Z25-AA25) -> 0 | AC25: =SUM(P25+AB25) -> 0
C26: Wine & Spirits Wholesalers of IN | E26: 6809.82 | F26: 0 | G26: 0 | H26: 0 | I26: 0 | J26: 0 | K26: 0 | L26: 0 | M26: 0 | N26: 6809.82 | O26: 6809.82 | P26: 0 | Q26: 1448.08 | R26: 0 | S26: 0 | T26: 0 | U26: 0 | V26: 0 | W26: 0 | X26: 0 | Y26: 0 | Z26: 1448.08 | AA26: 1448.08 | AB26: 0 | AC26: 0
A27: 2016 | B27: 19th Star State Solutions LLC | C27: Anthem & Its Affiliates | E27: 45000 | F27: 0 | G27: 0 | H27: 0 | I27: 0 | J27: 0 | K27: 0 | L27: 0 | M27: 0 | N27: =SUM(E27:M27) -> 45000 | O27: 45000 | P27: =SUM(N27-O27) -> 0 | Q27: 40000 | R27: 0 | S27: 240.02 | T27: 202.47 | U27: 0 | V27: 0 | W27: 195.02 | X27: 0 | Y27: 0 | Z27: =SUM(Q27:Y27) -> 40637.51 | AA27: 40637.51 | AB27: =SUM(Z27-AA27) -> -7.275957614e-12 | AC27: =SUM(P27+AB27) -> -7.275957614e-12
C28: Consumer Healthcare Products Assn | D28: TO | E28: 2500 | F28: 0 | G28: 0 | H28: 0 | I28: 0 | J28: 0 | K28: 0 | L28: 0 | M28: 0 | N28: =SUM(E28:M28) -> 2500 | O28: 2500 | P28: =SUM(N28-O28) -> 0 | Q28: 0 | R28: 0 | S28: 0 | T28: 0 | U28: 0 | V28: 0 | W28: 0 | X28: 0 | Y28: 0 | Z28: =SUM(Q28:Y28) -> 0 | AA28: 0 | AB28: =SUM(Z28-AA28) -> 0 | AC28: =SUM(P28+AB28) -> 0
A29: 2016 | B29: Ade Stevens, Jane | C29: IN Corn Growers Assn | E29: 0 | F29: 0 | G29: 0 | H29: 0 | I29: 0 | J29: 0 | K29: 0 | L29: 0 | M29: 0 | N29: 0 | O29: 0 | P29: 0 | Q29: 0 | R29: 0 | S29: 0 | T29: 0 | U29: 0 | V29: 0 | W29: 0 | X29: 0 | Y29: 0 | Z29: 0 | AA29: 0 | AB29: 0 | AC29: 0
C30: IN Soybean Alliance | E30: 0 | F30: 0 | G30: 0 | H30: 0 | I30: 0 | J30: 0 | K30: 0 | L30: 0 | M30: 0 | N30: 0 | O30: 0 | P30: 0 | Q30: 0 | R30: 0 | S30: 0 | T30: 0 | U30: 0 | V30: 0 | W30: 0 | X30: 0 | Y30: 0 | Z30: 0 | AA30: 0 | AB30: 0 | AC30: 0
A31: 2016 | B31: Aguilera, John | C31: TAN Consulting, Inc. | E31: 0 | F31: 0 | G31: 0 | H31: 0 | I31: 0 | J31: 0 | K31: 0 | L31: 0 | M31: 0 | N31: 0 | O31: 0 | P31: 0 | Q31: 0 | R31: 0 | S31: 0 | T31: 0 | U31: 0 | V31: 0 | W31: 0 | X31: 0 | Y31: 0 | Z31: 0 | AA31: 0 | AB31: 0 | AC31: 0
A32: 2016 | B32: Ainsworth, Richard | C32: United Farm Family Mut Insurance | E32: 0 | F32: 0 | G32: 0 | H32: 0 | I32: 0 | J32: 0 | K32: 0 | L32: 0 | M32: 0 | N32: =SUM(E32:M32) -> 0 | O32: 0 | P32: =SUM(N32-O32) -> 0 | Q32: 0 | R32: 0 | S32: 0 | T32: 0 | U32: 0 | V32: 0 | W32: 0 | X32: 0 | Y32: 0 | Z32: =SUM(Q32:Y32) -> 0 | AA32: 0 | AB32: =SUM(Z32-AA32) -> 0 | AC32: =SUM(P32+AB32) -> 0
A33: 2016 | B33: Alldredge, Neil | C33: Natl Assn of Mut Insurance Co. | E33: 0 | F33: 0 | G33: 0 | H33: 0 | I33: 0 | J33: 0 | K33: 0 | L33: 0 | M33: 0 | N33: 0 | O33: 0 | P33: 0 | Q33: 0 | R33: 0 | S33: 0 | T33: 0 | U33: 0 | V33: 0 | W33: 0 | X33: 200 | Y33: 0 | Z33: 200 | AA33: 0 | AB33: 200 | AC33: 200
A34: 2016 | B34: Allegue, Raul | C34: The Travelers Companies & Subsidiaries | E34: 0 | F34: 0 | G34: 0 | H34: 0 | I34: 0 | J34: 0 | K34: 0 | L34: 0 | M34: 0 | N34: =SUM(E34:M34) -> 0 | O34: 0 | P34: =SUM(N34-O34) -> 0 | Q34: 0 | R34: 0 | S34: 0 | T34: 0 | U34: 0 | V34: 0 | W34: 0 | X34: 0 | Y34: 0 | Z34: 0 | AA34: 0 | AB34: 0 | AC34: 0
A35: 2016 | B35: Allen, Deron | C35: IN American Water Company | D35: TO | E35: 0 | F35: 0 | G35: 0 | H35: 0 | I35: 0 | J35: 0 | K35: 0 | L35: 0 | M35: 0 | N35: =SUM(E35:M35) -> 0 | O35: 0 | P35: =SUM(N35-O35) -> 0 | Q35: 0 | R35: 0 | S35: 0 | T35: 0 | U35: 0 | V35: 0 | W35: 0 | X35: 0 | Y35: 0 | Z35: =SUM(Q35:Y35) -> 0 | AA35: 0 | AB35: =SUM(Z35-AA35) -> 0 | AC35: =SUM(P35+AB35) -> 0
A36: 2016 | B36: Altria Client Svcs Inc. | C36: Philip Morris USA, by its service Altria | E36: 94608.32 | F36: 0 | G36: 0 | H36: 215.71 | I36: 0 | J36: 0 | K36: 0 | L36: 1354.64 | M36: 62863.34 | N36: 159042.01 | O36: 159042.01 | P36: 0 | Q36: 78872.81 | R36: 0 | S36: 0 | T36: 0 | U36: 0 | V36: 0 | W36: 207.36 | X36: 203.04 | Y36: 110044.22 | Z36: 189327.43 | AA36: 189327.43 | AB36: 0 | AC36: 0
C37: Altria Client Svcs | E37: 0 | F37: 0 | G37: 0 | H37: 0 | I37: 0 | J37: 0 | K37: 0 | L37: 0 | M37: 0 | N37: =SUM(E37:M37) -> 0 | O37: 0 | P37: =SUM(N37-O37) -> 0 | Q37: 0 | R37: 0 | S37: 0 | T37: 0 | U37: 0 | V37: 0 | W37: 0 | X37: 0 | Y37: 0 | Z37: =SUM(Q37:Y37) -> 0 | AA37: 0 | AB37: =SUM(Z37-AA37) -> 0 | AC37: =SUM(P37+AB37) -> 0
C38: John Middleton Co by its affilit svc Altria | E38: 3466.66 | F38: 0 | G38: 0 | H38: 7.9 | I38: 0 | J38: 0 | K38: 0 | L38: 49.64 | M38: 2303.45 | N38: 5827.65 | O38: 5827.65 | P38: 0 | Q38: 2966.86 | R38: 0 | S38: 0 | T38: 0 | U38: 0 | V38: 0 | W38: 7.8 | X38: 7.64 | Y38: 4139.4 | Z38: 7121.7 | AA38: 7121.7 | AB38: 0 | AC38: 0
C39: US Smokeless Tobacco Co by its svc Altria | E39: 11188.68 | F39: 0 | G39: 0 | H39: 25.51 | I39: 0 | J39: 0 | K39: 0 | L39: 160.2 | M39: 7434.42 | N39: 18808.81 | O39: 18808.81 | P39: 0 | Q39: 9256.6 | R39: 0 | S39: 0 | T39: 0 | U39: 0 | V39: 0 | W39: 24.33 | X39: 23.83 | Y39: 12914.91 | Z39: 22219.67 | AA39: 22219.67 | AB39: 0 | AC39: 0
C40: Nu Mark LLC | E40: 385.2 | F40: 0 | G40: 0 | H40: 0.88 | I40: 0 | J40: 0 | K40: 0 | L40: 5.52 | M40: 255.95 | N40: =SUM(E40:M40) -> 647.55 | O40: 647.55 | P40: =SUM(N40-O40) -> 0 | Q40: 191.7 | R40: 0 | S40: 0 | T40: 0 | U40: 0 | V40: 0 | W40: 0.51 | X40: 0.49 | Y40: 267.47 | Z40: =SUM(Q40:Y40) -> 460.17 | AA40: 460.17 | AB40: =SUM(Z40-AA40) -> 0 | AC40: =SUM(P40+AB40) -> 0
A41: 2016 | B41: Anderson, David | C41: AstraZeneca Pharmacueticals | D41: TO | E41: 0 | F41: 0 | G41: 0 | H41: 0 | I41: 0 | J41: 0 | K41: 0 | L41: 0 | M41: 0 | N41: 0 | O41: 0 | P41: 0 | Q41: 0 | R41: 0 | S41: 0 | T41: 0 | U41: 0 | V41: 0 | W41: 0 | X41: 0 | Y41: 0 | Z41: 0 | AA41: 0 | AB41: 0 | AC41: 0
A42: 2016 | B42: Anderson, Evans | C42: Jamestown LP | D42: TO | E42: 0 | F42: 0 | G42: 0 | H42: 0 | I42: 0 | J42: 0 | K42: 0 | L42: 0 | M42: 0 | N42: 0 | O42: 0 | P42: 0 | Q42: 0 | R42: 0 | S42: 0 | T42: 0 | U42: 0 | V42: 0 | W42: 0 | X42: 0 | Y42: 0 | Z42: 0 | AA42: 0 | AB42: 0 | AC42: 0
A43: 2016 | B43: APPIAN | C43: Build IN Council | E43: 34375 | F43: 0 | G43: 0 | H43: 17.08 | I43: 0 | J43: 0 | K43: 0 | L43: 0 | M43: 30.48 | N43: 34422.56 | O43: 34422.56 | P43: 7.275957614e-12 | Q43: 41250 | R43: 1056.39 | S43: 0 | T43: 85.98 | U43: 0 | V43: 0 | W43: 92.09 | X43: 0 | Y43: 0 | Z43: 42484.46 | AA43: 42484.46 | AB43: 0 | AC43: 7.275957614e-12
B44: RX37J7 | C44: Hendricks Co. Board of Commissioners | E44: 2250 | F44: 0 | G44: 0 | H44: 0 | I44: 0 | J44: 0 | K44: 0 | L44: 0 | M44: 0 | N44: 2250 | O44: 2250 | P44: 0 | Q44: 2250 | R44: 0 | S44: 0 | T44: 0 | U44: 0 | V44: 0 | W44: 0 | X44: 0 | Y44: 0 | Z44: 2250 | AA44: 2250 | AB44: 0 | AC44: 0
C45: IN Constructors Inc. | E45: 3850 | F45: 0 | G45: 0 | H45: 0 | I45: 0 | J45: 0 | K45: 0 | L45: 0 | M45: 0 | N45: 3850 | O45: 3850 | P45: 0 | Q45: 3850 | R45: 0 | S45: 0 | T45: 0 | U45: 0 | V45: 0 | W45: 0 | X45: 0 | Y45: 0 | Z45: 3850 | AA45: 3850 | AB45: 0 | AC45: 0
C46: Bridgelink | E46: 10500 | F46: 0 | G46: 0 | H46: 0 | I46: 0 | J46: 0 | K46: 0 | L46: 0 | M46: 0 | N46: =SUM(E46:M46) -> 10500 | O46: 10500 | P46: =SUM(N46-O46) -> 0 | Q46: 10500 | R46: 0 | S46: 0 | T46: 0 | U46: 0 | V46: 0 | W46: 0 | X46: 0 | Y46: 0 | Z46: =SUM(Q46:Y46) -> 10500 | AA46: 10500 | AB46: =SUM(Z46-AA46) -> 0 | AC46: =SUM(P46+AB46) -> 0
C47: US 31 Coalition Inc. | E47: 6417 | F47: 0 | G47: 0 | H47: 160 | I47: 0 | J47: 0 | K47: 0 | L47: 0 | M47: 0 | N47: 6577 | O47: 6577 | P47: 0 | Q47: 5500 | R47: 0 | S47: 0 | T47: 0 | U47: 0 | V47: 0 | W47: 0 | X47: 0 | Y47: 0 | Z47: 5500 | AA47: 5500 | AB47: 0 | AC47: 0
A48: 2016 | B48: Arland, Karen L. | C48: See clients of Ice Miller | E48: 0 | F48: 0 | G48: 0 | H48: 0 | I48: 0 | J48: 0 | K48: 0 | L48: 0 | M48: 0 | N48: 0 | O48: 0 | P48: 0 | Q48: 0 | R48: 0 | S48: 0 | T48: 0 | U48: 0 | V48: 0 | W48: 0 | X48: 0 | Y48: 0 | Z48: 0 | AA48: 0 | AB48: 0 | AC48: 0
A49: 2016 | B49: Ashibuogwu, Ifeoma Daniella | C49: Ice Miller LLP | D49: TA | E49: 0 | F49: 0 | G49: 0 | H49: 0 | I49: 0 | J49: 0 | K49: 0 | L49: 0 | M49: 0 | N49: =SUM(E49:M49) -> 0 | O49: 0 | P49: =SUM(N49-O49) -> 0 | Z49: =SUM(Q49:Y49) -> 0 | AB49: =SUM(Z49-AA49) -> 0 | AC49: =SUM(P49+AB49) -> 0
A50: 2016 | B50: Ashton, Brett | C50: Krieg DeVault, LLP | E50: 0 | F50: 0 | G50: 0 | H50: 0 | I50: 0 | J50: 63.44 | K50: 113.8 | L50: 0 | M50: 0 | N50: 177.24 | O50: 177.24 | P50: 0 | Q50: 0 | R50: 0 | S50: 0 | T50: 0 | U50: 0 | V50: 0 | W50: 0 | X50: 0 | Y50: 0 | Z50: 0 | AA50: 0 | AB50: 0 | AC50: 0
A51: 2016 | B51: Auberry, Brent | C51: Faegre Baker Daniels LLP | E51: 0 | F51: 0 | G51: 0 | H51: 0 | I51: 0 | J51: 0 | K51: 0 | L51: 0 | M51: 0 | N51: 0 | O51: 0 | P51: 0 | Q51: 0 | R51: 0 | S51: 0 | T51: 0 | U51: 0 | V51: 0 | W51: 0 | X51: 0 | Y51: 0 | Z51: 0 | AA51: 0 | AB51: 0 | AC51: 0
A52: 2016 | B52: Augustus, Eric | C52: IN Utility Shareholders Assn | E52: 0 | F52: 0 | G52: 0 | H52: 0 | I52: 0 | J52: 0 | K52: 0 | L52: 0 | M52: 0 | N52: =SUM(E52:M52) -> 0 | O52: 0 | P52: =SUM(N52-O52) -> 0 | Q52: 0 | R52: 0 | S52: 0 | T52: 0 | U52: 0 | V52: 0 | W52: 0 | X52: 0 | Y52: 0 | Z52: =SUM(Q52:Y52) -> 0 | AA52: 0 | AB52: =SUM(Z52-AA52) -> 0 | AC52: =SUM(P52+AB52) -> 0
A53: 2016 | B53: Auslander, Caryl | C53: IN Chamber of Commerce | E53: 0 | F53: 0 | G53: 0 | H53: 0 | I53: 0 | J53: 0 | K53: 0 | L53: 0 | M53: 0 | N53: =SUM(E53:M53) -> 0 | O53: 0 | P53: =SUM(N53-O53) -> 0 | Q53: 0 | R53: 0 | S53: 0 | T53: 0 | U53: 0 | V53: 0 | W53: 0 | X53: 0 | Y53: 0 | Z53: =SUM(Q53:Y53) -> 0 | AA53: 0 | AB53: =SUM(Z53-AA53) -> 0 | AC53: =SUM(P53+AB53) -> 0
A54: 2016 | B54: Austria, Steve | C54: Zaino Hall & Farrin LLC | E54: 0 | F54: 0 | G54: 0 | H54: 0 | I54: 0 | J54: 0 | K54: 0 | L54: 0 | M54: 0 | N54: =SUM(E54:M54) -> 0 | O54: 0 | P54: =SUM(N54-O54) -> 0 | Q54: 0 | R54: 0 | S54: 0 | T54: 0 | U54: 0 | V54: 0 | W54: 0 | X54: 0 | Y54: 0 | Z54: =SUM(Q54:Y54) -> 0 | AA54: 0 | AB54: =SUM(Z54-AA54) -> 0 | AC54: =SUM(P54+AB54) -> 0
A55: 2016 | B55: Babbitt, Robin | C55: Ice Miller LLP | E55: 0 | F55: 0 | G55: 0 | H55: 0 | I55: 0 | J55: 0 | K55: 0 | L55: 0 | M55: 0 | N55: =SUM(E55:M55) -> 0 | O55: 0 | P55: =SUM(N55-O55) -> 0 | Q55: 0 | R55: 0 | S55: 0 | T55: 0 | U55: 0 | V55: 0 | W55: 0 | X55: 0 | Y55: 0 | Z55: =SUM(Q55:Y55) -> 0 | AA55: 0 | AB55: =SUM(Z55-AA55) -> 0 | AC55: =SUM(P55+AB55) -> 0
A56: 2016 | B56: Bailey, Todd | C56: Huntington Bancshares Inc | E56: 0 | F56: 0 | G56: 0 | H56: 0 | I56: 0 | J56: 0 | K56: 0 | L56: 0 | M56: 0 | N56: 0 | O56: 0 | P56: 0 | Q56: 0 | R56: 0 | S56: 0 | T56: 0 | U56: 0 | V56: 0 | W56: 0 | X56: 0 | Y56: 0 | Z56: 0 | AA56: 0 | AB56: 0 | AC56: 0
A57: 2016 | B57: Bainbridge, Phillip | C57: New Centaur | E57: 0 | F57: 0 | G57: 0 | H57: 0 | I57: 0 | J57: 0 | K57: 0 | L57: 0 | M57: 0 | N57: =SUM(E57:M57) -> 0 | O57: 0 | P57: =SUM(N57-O57) -> 0 | Q57: 0 | R57: 0 | S57: 0 | T57: 0 | U57: 0 | V57: 0 | W57: 0 | X57: 0 | Y57: 0 | Z57: =SUM(Q57:Y57) -> 0 | AA57: 0 | AB57: =SUM(Z57-AA57) -> 0 | AC57: =SUM(P57+AB57) -> 0
A58: 2016 | B58: Bainter, Jeffrey J. | C58: Brtherhd Maintnce Way Empl Division, IBT | D58: TO | E58: 0 | F58: 0 | G58: 0 | H58: 0 | I58: 0 | J58: 0 | K58: 0 | L58: 0 | M58: 0 | N58: 0 | O58: 0 | P58: 0 | Q58: 0 | R58: 0 | S58: 0 | T58: 0 | U58: 0 | V58: 0 | W58: 0 | X58: 0 | Y58: 0 | Z58: 0 | AA58: 0 | AB58: 0 | AC58: 0
A59: 2016 | B59: Baird, Erin | C59: IN Wildlife Federation | E59: 0 | F59: 0 | G59: 0 | H59: 0 | I59: 0 | J59: 0 | K59: 0 | L59: 0 | M59: 0 | N59: =SUM(E59:M59) -> 0 | O59: 0 | P59: 0 | Q59: 0 | R59: 0 | S59: 0 | T59: 0 | U59: 0 | V59: 0 | W59: 0 | X59: 0 | Y59: 0 | Z59: =SUM(Q59:Y59) -> 0 | AA59: 0 | AB59: =SUM(Z59-AA59) -> 0 | AC59: =SUM(P59+AB59) -> 0
A60: 2016 | B60: Baker, A. John | C60: Caesars Enterprise Services, LLC | E60: 0 | F60: 0 | G60: 0 | H60: 740.53 | I60: 0 | J60: 0 | K60: 0 | L60: 0 | M60: 0 | N60: =SUM(E60:M60) -> 740.53 | O60: 740.53 | P60: =SUM(N60-O60) -> 0 | Q60: 0 | R60: 0 | S60: 0 | T60: 129.45 | U60: 0 | V60: 0 | W60: 0 | X60: 0 | Y60: 0 | Z60: 129.45 | AA60: 129.45 | AB60: 0 | AC60: 0
A61: 2016 | B61: Baker, John J | C61: Repub. Natl Distrib. Co of IN/ NWS | E61: 0 | F61: 0 | G61: 0 | H61: 0 | I61: 0 | J61: 0 | K61: 0 | L61: 0 | M61: 0 | N61: 0 | O61: 0 | P61: 0 | Q61: 0 | R61: 0 | S61: 0 | T61: 0 | U61: 0 | V61: 0 | W61: 0 | X61: 0 | Y61: 0 | Z61: =SUM(Q61:Y61) -> 0 | AA61: 0 | AB61: =SUM(Z61-AA61) -> 0 | AC61: =SUM(P61+AB61) -> 0
A62: 2016 | B62: Barker, Nicole | C62: Save the Dunes | D62: TO | E62: 0 | F62: 0 | G62: 0 | H62: 0 | I62: 0 | J62: 0 | K62: 0 | L62: 0 | M62: 0 | N62: =SUM(E62:M62) -> 0 | O62: 0 | P62: 0 | Q62: 0 | R62: 0 | S62: 0 | T62: 0 | U62: 0 | V62: 0 | W62: 0 | X62: 0 | Y62: 0 | Z62: =SUM(Q62:Y62) -> 0 | AA62: 0 | AB62: =SUM(Z62-AA62) -> 0 | AC62: =SUM(P62+AB62) -> 0
A63: 2016 | B63: Barnes & Thornburg, LLP | C63: non client expenses | N63: 0 | P63: 0 | Q63: 0 | R63: 0 | S63: 0 | T63: 0 | U63: 0 | V63: 0 | W63: 0 | X63: 0 | Y63: 0 | Z63: =SUM(Q63:Y63) -> 0 | AA63: 0 | AB63: =SUM(Z63-AA63) -> 0 | AC63: =SUM(P63+AB63) -> 0
B64: R7BQ8J 8/1/2016 | C64: AW Holdings LLC | E64: 25358.97 | F64: 0 | G64: 0 | H64: 0 | I64: 0 | J64: 162.65 | K64: 0 | L64: 0 | M64: 0 | N64: 25521.62 | O64: 25521.62 | P64: 3.637978807e-12 | Q64: 26836.3 | R64: 0 | S64: 0 | T64: 0 | U64: 0 | V64: 0 | W64: 0 | X64: 10 | Y64: 0 | Z64: =SUM(Q64:Y64) -> 26846.3 | AA64: 26846.3 | AB64: =SUM(Z64-AA64) -> 0 | AC64: =SUM(P64+AB64) -> 3.637978807e-12
C65: Alliance Res Consumer Legal Funding | E65: 54218.53 | F65: 71.17 | G65: 0 | H65: 0 | I65: 0 | J65: 0 | K65: 0 | L65: 0 | M65: 0 | N65: =SUM(E65:M65) -> 54289.7 | O65: 54289.7 | P65: =SUM(N65-O65) -> 0 | Q65: 10384.29 | R65: 0 | S65: 0 | T65: 0 | U65: 0 | V65: 0 | W65: 0 | X65: 0 | Y65: 0 | Z65: =SUM(Q65:Y65) -> 10384.29 | AA65: 10384.29 | AB65: =SUM(Z65-AA65) -> 0 | AC65: =SUM(P65+AB65) -> 0
C66: Allison Transmission | E66: 102695.07 | F66: 0 | G66: 0 | H66: 28 | I66: 0 | J66: 0 | K66: 0 | L66: 1675 | M66: 0 | N66: 104398.07 | O66: 104398.07 | P66: 0 | Q66: 109949.84 | R66: 0 | S66: 0 | T66: 0 | U66: 0 | V66: 0 | W66: 0 | X66: 25 | Y66: 0 | Z66: =SUM(Q66:Y66) -> 109974.84 | AA66: 109974.84 | AB66: =SUM(Z66-AA66) -> 0 | AC66: =SUM(P66+AB66) -> 0
C67: Assn of Clerks of Circuit Courts IN | E67: 18834.6 | F67: 0 | G67: 0 | H67: 0 | I67: 0 | J67: 0 | K67: 0 | L67: 0 | M67: 0 | N67: 18834.6 | O67: 18834.6 | P67: 0 | Q67: 21930.64 | R67: 0 | S67: 0 | T67: 0 | U67: 0 | V67: 0 | W67: 0 | X67: 0 | Y67: 0 | Z67: =SUM(Q67:Y67) -> 21930.64 | AA67: 21930.64 | AB67: =SUM(Z67-AA67) -> 0 | AC67: =SUM(P67+AB67) -> 0
C68: Assn of IN Prosecuting Attorneys, Inc. | E68: 70452.46 | F68: 0 | G68: 0 | H68: 0 | I68: 0 | J68: 62.5 | K68: 0 | L68: 0 | M68: 0 | N68: 70514.96 | O68: 70514.96 | P68: 0 | Q68: 58010.89 | R68: 0 | S68: 0 | T68: 0 | U68: 0 | V68: 0 | W68: 0 | X68: 0 | Y68: 0 | Z68: 58010.89 | AA68: 58010.89 | AB68: 0 | AC68: 0
C69: BC Initiative, Inc. | E69: 26407.32 | F69: 0 | G69: 0 | H69: 0 | I69: 0 | J69: 0 | K69: 0 | L69: 10 | M69: 0 | N69: 26417.32 | O69: 26417.32 | P69: 0 | Q69: 27569.63 | R69: 0 | S69: 0 | T69: 0 | U69: 0 | V69: 0 | W69: 0 | X69: 10 | Y69: 0 | Z69: 27579.63 | AA69: 27579.63 | AB69: 0 | AC69: 0
C70: Bd Commissioner Dearborn Co | E70: 37683.68 | F70: 0 | G70: 0 | H70: 0 | I70: 0 | J70: 0 | K70: 0 | L70: 0 | M70: 0 | N70: 37683.68 | O70: 37683.68 | P70: 0 | Q70: 14338.07 | R70: 0 | S70: 0 | T70: 0 | U70: 0 | V70: 0 | W70: 0 | X70: 0 | Y70: 0 | Z70: 14338.07 | AA70: 14338.07 | AB70: 0 | AC70: 0
C71: Bd Commissioner Shelby Co | E71: 6838.88 | F71: 0 | G71: 0 | H71: 0 | I71: 0 | J71: 0 | K71: 0 | L71: 0 | M71: 0 | N71: 6838.88 | O71: 6838.88 | P71: 0 | Q71: 1025.24 | R71: 0 | S71: 0 | T71: 0 | U71: 0 | V71: 0 | W71: 0 | X71: 0 | Y71: 0 | Z71: =SUM(Q71:Y71) -> 1025.24 | AA71: 1025.24 | AB71: =SUM(Z71-AA71) -> 0 | AC71: =SUM(P71+AB71) -> 0
C72: Bd Commissioner St. Joseph Co | E72: 12211.31 | F72: 0 | G72: 0 | H72: 0 | I72: 0 | J72: 0 | K72: 0 | L72: 225 | M72: 0 | N72: 12436.31 | O72: 12436.31 | P72: 0 | Q72: 12137.56 | R72: 0 | S72: 0 | T72: 0 | U72: 0 | V72: 0 | W72: 0 | X72: 10 | Y72: 0 | Z72: 12147.56 | AA72: 12147.56 | AB72: 0 | AC72: 0
C73: CRC Health Group | E73: 26046.98 | F73: 0 | G73: 0 | H73: 0 | I73: 0 | J73: 142.85 | K73: 0 | L73: 0 | M73: 0 | N73: 26189.83 | O73: 26189.83 | P73: -3.637978807e-12 | Q73: 30936.7 | R73: 0 | S73: 0 | T73: 0 | U73: 0 | V73: 0 | W73: 0 | X73: 0 | Y73: 0 | Z73: 30936.7 | AA73: 30936.7 | AB73: 0 | AC73: -3.637978807e-12
C74: CVS Health | E74: 36825.02 | F74: 194.22 | G74: 0 | H74: 0 | I74: 0 | J74: 0 | K74: 135.63 | L74: 225 | M74: 0 | N74: 37379.87 | O74: 37379.87 | P74: -7.275957614e-12 | Q74: 15593.99 | R74: 0 | S74: 0 | T74: 0 | U74: 0 | V74: 0 | W74: 0 | X74: 15 | Y74: 0 | Z74: 15608.99 | AA74: 15608.99 | AB74: 0 | AC74: -7.275957614e-12
C75: CARFAX | D75: TO | E75: 7186.97 | F75: 0 | G75: 0 | H75: 0 | I75: 0 | J75: 0 | K75: 0 | L75: 0 | M75: 0 | N75: =SUM(E75:M75) -> 7186.97 | O75: 7186.97 | P75: =SUM(N75-O75) -> 0 | Q75: 682.79 | R75: 0 | S75: 0 | T75: 0 | U75: 0 | V75: 0 | W75: 0 | X75: 12 | Y75: 0 | Z75: =SUM(Q75:Y75) -> 694.79 | AA75: 694.79 | AB75: =SUM(Z75-AA75) -> 0 | AC75: =SUM(P75+AB75) -> 0
C76: Charter Schools USA | E76: 18834.44 | F76: 0 | G76: 0 | H76: 0 | I76: 0 | J76: 0 | K76: 0 | L76: 10 | M76: 0 | N76: 18844.44 | O76: 18844.44 | P76: 0 | Q76: 18969.89 | R76: 0 | S76: 0 | T76: 0 | U76: 0 | V76: 0 | W76: 0 | X76: 0 | Y76: 0 | Z76: 18969.89 | AA76: 18969.89 | AB76: 0 | AC76: 0
C77: City of Evansville | E77: 14158.26 | F77: 0 | G77: 0 | H77: 0 | I77: 0 | J77: 0 | K77: 0 | L77: 220 | M77: 0 | N77: =SUM(E77:M77) -> 14378.26 | O77: 14378.26 | P77: =SUM(N77-O77) -> 0 | Q77: 4388.87 | R77: 0 | S77: 0 | T77: 0 | U77: 0 | V77: 0 | W77: 0 | X77: 10 | Y77: 0 | Z77: 4398.87 | AA77: 4398.87 | AB77: 0 | AC77: 0
C78: City of Fishers | E78: 50359.59 | F78: 0 | G78: 0 | H78: 0 | I78: 0 | J78: 0 | K78: 0 | L78: 225 | M78: 0 | N78: 50584.59 | O78: 50584.59 | P78: 0 | Q78: 55149.51 | R78: 0 | S78: 0 | T78: 0 | U78: 0 | V78: 0 | W78: 0 | X78: 0 | Y78: 0 | Z78: =SUM(Q78:Y78) -> 55149.51 | AA78: 55149.51 | AB78: =SUM(Z78-AA78) -> 0 | AC78: =SUM(P78+AB78) -> 0
C79: City of Greenwood | E79: 21728.47 | F79: 0 | G79: 0 | H79: 0 | I79: 0 | J79: 0 | K79: 0 | L79: 0 | M79: 0 | N79: =SUM(E79:M79) -> 21728.47 | O79: 21728.47 | P79: =SUM(N79-O79) -> 0 | Q79: 12076.44 | R79: 0 | S79: 0 | T79: 0 | U79: 0 | V79: 0 | W79: 0 | X79: 0 | Y79: 0 | Z79: =SUM(Q79:Y79) -> 12076.44 | AA79: 12076.44 | AB79: =SUM(Z79-AA79) -> 0 | AC79: =SUM(P79+AB79) -> 0
C80: City of Lawrence | E80: 14728.57 | F80: 0 | G80: 0 | H80: 0 | I80: 0 | J80: 0 | K80: 0 | L80: 215 | M80: 0 | N80: =SUM(E80:M80) -> 14943.57 | O80: 14943.57 | P80: =SUM(N80-O80) -> 0 | Q80: 1165.86 | R80: 0 | S80: 0 | T80: 0 | U80: 0 | V80: 0 | W80: 0 | X80: 12 | Y80: 0 | Z80: =SUM(Q80:Y80) -> 1177.86 | AA80: 1177.86 | AB80: =SUM(Z80-AA80) -> 0 | AC80: =SUM(P80+AB80) -> 0
C81: City of Shelbyville | E81: 7484.2 | F81: 0 | G81: 0 | H81: 0 | I81: 0 | J81: 0 | K81: 0 | L81: 220 | M81: 0 | N81: =SUM(E81:M81) -> 7704.2 | O81: 7704.2 | P81: =SUM(N81-O81) -> 0 | Q81: 1468.74 | R81: 0 | S81: 0 | T81: 0 | U81: 0 | V81: 0 | W81: 0 | X81: 0 | Y81: 0 | Z81: =SUM(Q81:Y81) -> 1468.74 | AA81: 1468.74 | AB81: =SUM(Z81-AA81) -> 0 | AC81: =SUM(P81+AB81) -> 0
C82: Coalition Advance Practice Nurse | D82: p2 | N82: =SUM(E82:M82) -> 0 | O82: 0 | P82: =SUM(N82-O82) -> 0 | Q82: 20058.55 | R82: 4 | S82: 0 | T82: 0 | U82: 0 | V82: 0 | W82: 0 | X82: 0 | Y82: 0 | Z82: =SUM(Q82:Y82) -> 20062.55 | AA82: 20062.55 | AB82: =SUM(Z82-AA82) -> 0 | AC82: =SUM(P82+AB82) -> 0
C83: Coalition for Homelessness Intervention and Prev | E83: 0 | F83: 0 | G83: 0 | H83: 0 | I83: 0 | J83: 0 | K83: 0 | L83: 0 | M83: 0 | N83: =SUM(E83:M83) -> 0 | O83: 0 | P83: =SUM(N83-O83) -> 0 | Q83: 0 | R83: 0 | S83: 0 | T83: 0 | U83: 0 | V83: 0 | W83: 0 | X83: 10 | Y83: 0 | Z83: 10 | AA83: 10 | AB83: 0 | AC83: 0
C84: Concerned Creditors Bar IN | D84: TA | E84: 5667.16 | F84: 0 | G84: 0 | H84: 0 | I84: 0 | J84: 0 | K84: 0 | L84: 10 | M84: 0 | N84: 5677.16 | O84: 5677.16 | P84: 0 | Z84: =SUM(Q84:Y84) -> 0 | AB84: =SUM(Z84-AA84) -> 0 | AC84: =SUM(P84+AB84) -> 0
C85: Cummins Inc. | E85: 22916.4 | F85: 138.27 | G85: 0 | H85: 0 | I85: 0 | J85: 229.01 | K85: 0 | L85: 0 | M85: 0 | N85: =SUM(E85:M85) -> 23283.68 | O85: 23283.68 | P85: =SUM(N85-O85) -> 0 | Q85: 5153.77 | R85: 0 | S85: 0 | T85: 0 | U85: 0 | V85: 0 | W85: 0 | X85: 7 | Y85: 0 | Z85: =SUM(Q85:Y85) -> 5160.77 | AA85: 5160.77 | AB85: =SUM(Z85-AA85) -> 0 | AC85: =SUM(P85+AB85) -> 0
C86: Damar Charter School | E86: 21652.79 | F86: 0 | G86: 0 | H86: 0 | I86: 0 | J86: 0 | K86: 0 | L86: 115 | M86: 0 | N86: 21767.79 | O86: 21767.79 | P86: 0 | Q86: 4669.42 | R86: 0 | S86: 0 | T86: 0 | U86: 0 | V86: 0 | W86: 0 | X86: 0 | Y86: 0 | Z86: =SUM(Q86:Y86) -> 4669.42 | AA86: 4669.42 | AB86: =SUM(Z86-AA86) -> 0 | AC86: =SUM(P86+AB86) -> 0
C87: Distilled Spirits of the US, Inc. | E87: 39482.48 | F87: 0 | G87: 0 | H87: 0 | I87: 0 | J87: 0 | K87: 0 | L87: 445 | M87: 0 | N87: =SUM(E87:M87) -> 39927.48 | O87: 39927.48 | P87: =SUM(N87-O87) -> 0 | Q87: 43811.93 | R87: 0 | S87: 0 | T87: 0 | U87: 0 | V87: 0 | W87: 0 | X87: 19 | Y87: 0 | Z87: =SUM(Q87:Y87) -> 43830.93 | AA87: 43830.93 | AB87: =SUM(Z87-AA87) -> 0 | AC87: =SUM(P87+AB87) -> 0
C88: Eli Lilly Corporation | E88: 7093.34 | F88: 78.39 | G88: 0 | H88: 0 | I88: 0 | J88: 0 | K88: 0 | L88: 0 | M88: 0 | N88: 7171.73 | O88: 7171.73 | P88: 9.094947018e-13 | Q88: 19570.08 | R88: 0 | S88: 0 | T88: 0 | U88: 0 | V88: 0 | W88: 0 | X88: 5 | Y88: 0 | Z88: 19575.08 | AA88: 19575.08 | AB88: 0 | AC88: 9.094947018e-13
C89: Enterprise Leasing Co | E89: 14365.45 | F89: 379.02 | G89: 0 | H89: 0 | I89: 0 | J89: 200 | K89: 0 | L89: 225 | M89: 0 | N89: =SUM(E89:M89) -> 15169.47 | O89: 15169.47 | P89: =SUM(N89-O89) -> 1.818989404e-12 | Q89: 13024.61 | R89: 0 | S89: 0 | T89: 0 | U89: 0 | V89: 0 | W89: 0 | X89: 10 | Y89: 0 | Z89: =SUM(Q89:Y89) -> 13034.61 | AA89: 13034.61 | AB89: =SUM(Z89-AA89) -> 0 | AC89: =SUM(P89+AB89) -> 1.818989404e-12
C90: Family Express Corporation | E90: 27529.37 | F90: 0 | G90: 0 | H90: 0 | I90: 0 | J90: 0 | K90: 0 | L90: 225 | M90: 0 | N90: 27754.37 | O90: 27754.37 | P90: 0 | Q90: 12711.36 | R90: 0 | S90: 0 | T90: 0 | U90: 0 | V90: 0 | W90: 0 | X90: 0 | Y90: 0 | Z90: 12711.36 | AA90: 12711.36 | AB90: 0 | AC90: 0
C91: Ft Wayne Allen Co Conv Visit | D91: p2 | M91: 0 | N91: =SUM(E91:M91) -> 0 | O91: 0 | P91: =SUM(N91-O91) -> 0 | Q91: 15032.47 | R91: 0 | S91: 0 | T91: 0 | U91: 0 | V91: 0 | W91: 0 | X91: 430 | Y91: 0 | Z91: =SUM(Q91:Y91) -> 15462.47 | AA91: 15462.47 | AB91: =SUM(Z91-AA91) -> 0 | AC91: =SUM(P91+AB91) -> 0
C92: Fndntn for Educ. Choice/ dba Friedman Fdntn | D92: TO | E92: 2214.36 | F92: 0 | G92: 0 | H92: 0 | I92: 0 | J92: 0 | K92: 0 | L92: 5 | M92: 0 | N92: 2219.36 | O92: 2219.36 | P92: 0 | Q92: 2308.67 | R92: 0 | S92: 0 | T92: 0 | U92: 0 | V92: 0 | W92: 0 | X92: 5 | Y92: 0 | Z92: 2313.67 | AA92: 2313.67 | AB92: 0 | AC92: 0
C93: Fndtns of E. Chicago | E93: 218.54 | F93: 0 | G93: 0 | H93: 0 | I93: 0 | J93: 0 | K93: 0 | L93: 10 | M93: 0 | N93: 228.54 | O93: 228.54 | P93: 0 | Q93: 561.98 | R93: 0 | S93: 0 | T93: 0 | U93: 0 | V93: 0 | W93: 0 | X93: 10 | Y93: 0 | Z93: 571.98 | AA93: 571.98 | AB93: 0 | AC93: 0
C94: Gary/Chicago Intl Airport Authority | E94: 44996.93 | F94: 78.39 | G94: 0 | H94: 0 | I94: 0 | J94: 0 | K94: 0 | L94: 227 | M94: 0 | N94: 45302.32 | O94: 45302.32 | P94: 0 | Q94: 29173.33 | R94: 0 | S94: 0 | T94: 0 | U94: 0 | V94: 0 | W94: 0 | X94: 10 | Y94: 0 | Z94: 29183.33 | AA94: 29183.33 | AB94: 0 | AC94: 0
C95: GlaxoSmithKline | D95: TA | E95: 0 | F95: 0 | G95: 0 | H95: 0 | I95: 0 | J95: 0 | K95: 0 | L95: 0 | M95: 0 | N95: =SUM(E95:M95) -> 0 | O95: 0 | P95: =SUM(N95-O95) -> 0 | Z95: =SUM(Q95:Y95) -> 0 | AB95: =SUM(Z95-AA95) -> 0 | AC95: =SUM(P95+AB95) -> 0
C96: Health and Hospital Corporation of Marion Co | E96: 59324.24 | F96: 47.1 | G96: 0 | H96: 0 | I96: 0 | J96: 304.57 | K96: 63.4 | L96: 0 | M96: 0 | N96: 59739.31 | O96: 59739.31 | P96: 0 | Q96: 37194.22 | R96: 0 | S96: 0 | T96: 0 | U96: 0 | V96: 0 | W96: 0 | X96: 10 | Y96: 0 | Z96: 37204.22 | AA96: 37204.22 | AB96: 0 | AC96: 0
C97: Independent Colleges of IN | E97: 33762.13 | F97: 0 | G97: 0 | H97: 0 | I97: 0 | J97: 34.8 | K97: 0 | L97: 0 | M97: 0 | N97: 33796.93 | O97: 33796.93 | P97: 0 | Q97: 36364.71 | R97: 0 | S97: 0 | T97: 0 | U97: 0 | V97: 0 | W97: 0 | X97: 21 | Y97: 0 | Z97: 36385.71 | AA97: 36385.71 | AB97: 0 | AC97: 0
C98: Indiana American Water Company | E98: 36016.6 | F98: 0 | G98: 0 | H98: 0 | I98: 0 | J98: 0 | K98: 0 | L98: 20 | M98: 0 | N98: 36036.6 | O98: 36036.6 | P98: 0 | Q98: 29530.69 | R98: 0 | S98: 0 | T98: 0 | U98: 0 | V98: 0 | W98: 0 | X98: 17 | Y98: 0 | Z98: 29547.69 | AA98: 29547.69 | AB98: 0 | AC98: 0
C99: IN Assn of Background Screeners | E99: 17425.8 | F99: 0 | G99: 0 | H99: 0 | I99: 0 | J99: 0 | K99: 0 | L99: 225 | M99: 0 | N99: 17650.8 | O99: 17650.8 | P99: 0 | Q99: 11999.55 | R99: 0 | S99: 0 | T99: 0 | U99: 0 | V99: 0 | W99: 0 | X99: 10 | Y99: 0 | Z99: 12009.55 | AA99: 12009.55 | AB99: 0 | AC99: 0
C100: IN Assn of County Commissioners | E100: 37158.27 | F100: 0 | G100: 0 | H100: 0 | I100: 0 | J100: 0 | K100: 0 | L100: 0 | M100: 0 | N100: 37158.27 | O100: 37158.27 | P100: 0 | Q100: 15066.62 | R100: 0 | S100: 0 | T100: 0 | U100: 0 | V100: 0 | W100: 0 | X100: 10 | Y100: 0 | Z100: 15076.62 | AA100: 15076.62 | AB100: 0 | AC100: 0
C101: IN Assn for the Education of Young Children | E101: 21237.06 | F101: 67.45 | G101: 0 | H101: 0 | I101: 0 | J101: 0 | K101: 0 | L101: 0 | M101: 0 | N101: =SUM(E101:M101) -> 21304.51 | O101: 21304.51 | P101: =SUM(N101-O101) -> 3.637978807e-12 | Q101: 28460.58 | R101: 0 | S101: 0 | T101: 0 | U101: 0 | V101: 0 | W101: 0 | X101: 0 | Y101: 0 | Z101: =SUM(Q101:Y101) -> 28460.58 | AA101: 28460.58 | AB101: =SUM(Z101-AA101) -> 0 | AC101: =SUM(P101+AB101) -> 3.637978807e-12
C102: IN Assn of Health Plans, Inc. | E102: 24501.35 | F102: 286.07 | G102: 0 | H102: 0 | I102: 0 | J102: 258.36 | K102: 128.01 | L102: 0 | M102: 0 | N102: 25173.79 | O102: 25173.79 | P102: -3.637978807e-12 | Q102: 16976.42 | R102: 0 | S102: 0 | T102: 19.91 | U102: 0 | V102: 0 | W102: 0 | X102: 10 | Y102: 0 | Z102: 17006.33 | AA102: 17006.33 | AB102: -3.637978807e-12 | AC102: -7.275957614e-12
C103: IN Assn of Homes & Services for the Aging | E103: 24482.53 | F103: 0 | G103: 0 | H103: 0 | I103: 0 | J103: 142.86 | K103: 135.25 | L103: 15 | M103: 0 | N103: 24775.64 | O103: 24775.64 | P103: 0 | Q103: 18496.06 | R103: 0 | S103: 0 | T103: 0 | U103: 0 | V103: 0 | W103: 0 | X103: 12 | Y103: 0 | Z103: 18508.06 | AA103: 18508.06 | AB103: 0 | AC103: 0
C104: IN Bell Telephone d/b/a AT&T | E104: 34217.53 | F104: 0 | G104: 0 | H104: 18.88 | I104: 0 | J104: 0 | K104: 0 | L104: 5 | M104: 0 | N104: 34241.41 | O104: 34241.41 | P104: -7.275957614e-12 | Q104: 31390.89 | R104: 0 | S104: 0 | T104: 0 | U104: 0 | V104: 0 | W104: 0 | X104: 5 | Y104: 0 | Z104: 31395.89 | AA104: 31395.89 | AB104: 0 | AC104: -7.275957614e-12
C105: IN Bond Bank | E105: 27349.6 | F105: 0 | G105: 0 | H105: 0 | I105: 0 | J105: 0 | K105: 0 | L105: 225 | M105: 0 | N105: =SUM(E105:M105) -> 27574.6 | O105: 27574.6 | P105: =SUM(N105-O105) -> 0 | Q105: 2961.48 | R105: 0 | S105: 0 | T105: 0 | U105: 0 | V105: 0 | W105: 0 | X105: 0 | Y105: 0 | Z105: 2961.48 | AA105: 2961.48 | AB105: 0 | AC105: 0
C106: IN Building Contractors Alliance | E106: 37734.65 | F106: 0 | G106: 0 | H106: 0 | I106: 0 | J106: 71.25 | K106: 0 | L106: 0 | M106: 0 | N106: 37805.9 | O106: 37805.9 | P106: 0 | Q106: 42886.48 | R106: 0 | S106: 0 | T106: 0 | U106: 0 | V106: 0 | W106: 0 | X106: 15 | Y106: 0 | Z106: 42901.48 | AA106: 42901.48 | AB106: 0 | AC106: 0
C107: IN Chptr Natl Acdmy Elder Law Attys | E107: 10860.73 | F107: 0 | G107: 0 | H107: 0 | I107: 0 | J107: 0 | K107: 0 | L107: 0 | M107: 0 | N107: 10860.73 | O107: 10860.73 | P107: 0 | Q107: 13055.8 | R107: 476.76 | S107: 0 | T107: 0 | U107: 0 | V107: 0 | W107: 311.84 | X107: 0 | Y107: 0 | Z107: 13844.4 | AA107: 13844.4 | AB107: 0 | AC107: 0
C108: IN Constructors Inc. | E108: 12748.89 | F108: 0 | G108: 0 | H108: 0 | I108: 0 | J108: 392.51 | K108: 0 | L108: 0 | M108: 0 | N108: 13141.4 | O108: 13141.4 | P108: 0 | Q108: 3039.1 | R108: 0 | S108: 0 | T108: 0 | U108: 0 | V108: 0 | W108: 0 | X108: 10 | Y108: 0 | Z108: 3049.1 | AA108: 3049.1 | AB108: 0 | AC108: 0
C109: IN Council Comm Mental Health | E109: 9718.38 | F109: 0 | G109: 0 | H109: 0 | I109: 0 | J109: 184.52 | K109: 0 | L109: 0 | M109: 0 | N109: =SUM(E109:M109) -> 9902.9 | O109: 9902.9 | P109: =SUM(N109-O109) -> 0 | Q109: 29152.6 | R109: 604.81 | S109: 0 | T109: 0 | U109: 0 | V109: 0 | W109: 129.29 | X109: 0 | Y109: 0 | Z109: =SUM(Q109:Y109) -> 29886.7 | AA109: 29886.7 | AB109: =SUM(Z109-AA109) -> 0 | AC109: =SUM(P109+AB109) -> 0
C110: IN County Treasurers Assn | E110: 10351.97 | F110: 0 | G110: 0 | H110: 0 | I110: 0 | J110: 0 | K110: 0 | L110: 225 | M110: 0 | N110: 10576.97 | O110: 10576.97 | P110: 0 | Q110: 3279.31 | R110: 0 | S110: 0 | T110: 0 | U110: 0 | V110: 0 | W110: 0 | X110: 0 | Y110: 0 | Z110: 3279.31 | AA110: 3279.31 | AB110: 0 | AC110: 0
C111: IN Education Savings Authority | E111: 18280.79 | F111: 0 | G111: 0 | H111: 0 | I111: 0 | J111: 40 | K111: 0 | L111: 225 | M111: 0 | N111: 18545.79 | O111: 18545.79 | P111: 0 | Q111: 8176.56 | R111: 0 | S111: 0 | T111: 0 | U111: 0 | V111: 0 | W111: 0 | X111: 0 | Y111: 0 | Z111: 8176.56 | AA111: 8176.56 | AB111: 0 | AC111: 0
C112: IN Health Information Exchange, Inc. | E112: 18227.28 | F112: 0 | G112: 0 | H112: 0 | I112: 0 | J112: 0 | K112: 0 | L112: 210 | M112: 0 | N112: 18437.28 | O112: 18437.28 | P112: 0 | Q112: 20058.55 | R112: 0 | S112: 0 | T112: 49 | U112: 0 | V112: 0 | W112: 0 | X112: 4 | Y112: 0 | Z112: 20111.55 | AA112: 20111.55 | AB112: 0 | AC112: 0
C113: IN Philanthropy Alliance | E113: 16776.31 | F113: 216.92 | G113: 0 | H113: 0 | I113: 0 | J113: 41.67 | K113: 0 | L113: 0 | M113: 0 | N113: =SUM(E113:M113) -> 17034.9 | O113: 17034.9 | P113: =SUM(N113-O113) -> -3.637978807e-12 | Q113: 7007.91 | R113: 0 | S113: 0 | T113: 0 | U113: 0 | V113: 0 | W113: 0 | X113: 0 | Y113: 0 | Z113: 7007.91 | AA113: 7007.91 | AB113: 0 | AC113: -3.637978807e-12
C114: IN Rural Health | E114: 22255.85 | F114: 245.58 | G114: 0 | H114: 0 | I114: 0 | J114: 499.61 | K114: 0 | L114: 525 | M114: 0 | N114: 23526.04 | O114: 23526.04 | P114: 0 | Q114: 14338.25 | R114: 0 | S114: 0 | T114: 0 | U114: 0 | V114: 0 | W114: 0 | X114: 4 | Y114: 0 | Z114: 14342.25 | AA114: 14342.25 | AB114: 0 | AC114: 0
C115: IN Secretary of State | E115: 26035.37 | F115: 0 | G115: 0 | H115: 0 | I115: 0 | J115: 0 | K115: 0 | L115: 10 | M115: 0 | N115: 26045.37 | O115: 26045.37 | P115: 0 | Q115: 5077.96 | R115: 0 | S115: 0 | T115: 0 | U115: 0 | V115: 0 | W115: 0 | X115: 10 | Y115: 0 | Z115: 5087.96 | AA115: 5087.96 | AB115: 0 | AC115: 0
C116: IN Society Prof Land Surveyors | E116: 9298.86 | F116: 0 | G116: 0 | H116: 0 | I116: 0 | J116: 0 | K116: 0 | L116: 220 | M116: 0 | N116: 9518.86 | O116: 9518.86 | P116: 0 | Q116: 2488.73 | R116: 311.84 | S116: 0 | T116: 0 | U116: 0 | V116: 0 | W116: 147.56 | X116: 10 | Y116: 0 | Z116: 2958.13 | AA116: 2958.13 | AB116: 0 | AC116: 0
C117: IN Statewide 911 Bd | E117: 21513.04 | F117: 0 | G117: 0 | H117: 0 | I117: 0 | J117: 0 | K117: 0 | L117: 40 | M117: 0 | N117: 21553.04 | O117: 21553.04 | P117: 0 | Q117: 5934.23 | R117: 0 | S117: 0 | T117: 0 | U117: 0 | V117: 0 | W117: 0 | X117: 0 | Y117: 0 | Z117: 5934.23 | AA117: 5934.23 | AB117: 0 | AC117: 0
C118: IN Vapor Company | D118: TO | E118: 1898.23 | F118: 0 | G118: 0 | H118: 0 | I118: 0 | J118: 0 | K118: 0 | L118: 10 | M118: 0 | N118: 1908.23 | O118: 1908.23 | P118: 0 | Q118: 592.6 | R118: 0 | S118: 0 | T118: 0 | U118: 0 | V118: 0 | W118: 0 | X118: 0 | Y118: 0 | Z118: 592.6 | AA118: 592.6 | AB118: 0 | AC118: 0
C119: Indpls Public Transpo Corporation | E119: 25952.91 | F119: 0 | G119: 0 | H119: 0 | I119: 0 | J119: 0 | K119: 0 | L119: 215 | M119: 0 | N119: 26167.91 | O119: 26167.91 | P119: 0 | Q119: 29322.37 | R119: 0 | S119: 0 | T119: 0 | U119: 0 | V119: 0 | W119: 0 | X119: 10 | Y119: 0 | Z119: 29332.37 | AA119: 29332.37 | AB119: 0 | AC119: 0
C120: Indy Sports & Entmnt dba Indy Eleven | E120: 18867.82 | F120: 0 | G120: 0 | H120: 0 | I120: 0 | J120: 0 | K120: 0 | L120: 0 | M120: 0 | N120: 18867.82 | O120: 18867.82 | P120: 0 | Q120: 2876.48 | R120: 0 | S120: 0 | T120: 0 | U120: 0 | V120: 0 | W120: 0 | X120: 10 | Y120: 0 | Z120: 2886.48 | AA120: 2886.48 | AB120: 0 | AC120: 0
C121: Institute Quality Education | D121: P2 | N121: =SUM(E121:M121) -> 0 | O121: 0 | P121: =SUM(N121-O121) -> 0 | Q121: 516.64 | R121: 0 | S121: 0 | T121: 0 | U121: 0 | V121: 0 | W121: 0 | X121: 7 | Y121: 0 | Z121: =SUM(Q121:Y121) -> 523.64 | AA121: 523.64 | AB121: =SUM(Z121-AA121) -> 0 | AC121: =SUM(P121+AB121) -> 0
C122: Lake Co Solid Waste Mgmnt District | E122: 33954.19 | F122: 78.39 | G122: 0 | H122: 493.63 | I122: 0 | J122: 0 | K122: 0 | L122: 0 | M122: 0 | N122: 34526.21 | O122: 34526.21 | P122: 0 | Q122: 11884.02 | R122: 0 | S122: 0 | T122: 0 | U122: 0 | V122: 0 | W122: 0 | X122: 5 | Y122: 0 | Z122: 11889.02 | AA122: 11889.02 | AB122: 0 | AC122: 0
C123: The Majestic Star Casino | E123: 36686.35 | F123: 0 | G123: 0 | H123: 0 | I123: 0 | J123: 206.85 | K123: 0 | L123: 25 | M123: 0 | N123: 36918.2 | O123: 36918.2 | P123: 0 | Q123: 33441.99 | R123: 9.61 | S123: 0 | T123: 0 | U123: 0 | V123: 0 | W123: 0 | X123: 29 | Y123: 0 | Z123: 33480.6 | AA123: 33480.6 | AB123: 0 | AC123: 0
C124: Marion Superior Courts | E124: 14946.5 | F124: 0 | G124: 0 | H124: 0 | I124: 0 | J124: 120.6 | K124: 0 | L124: 10 | M124: 0 | N124: 15077.1 | O124: 15077.1 | P124: 0 | Q124: 8723.47 | R124: 0 | S124: 0 | T124: 0 | U124: 0 | V124: 0 | W124: 0 | X124: 10 | Y124: 0 | Z124: 8733.47 | AA124: 8733.47 | AB124: 0 | AC124: 0
C125: MDWise | E125: 26738.66 | F125: 0 | G125: 0 | H125: 0 | I125: 0 | J125: 100 | K125: 0 | L125: 0 | M125: 0 | N125: =SUM(E125:M125) -> 26838.66 | O125: 26838.66 | P125: =SUM(N125-O125) -> 0 | Q125: 27080.77 | R125: 0 | S125: 0 | T125: 0 | U125: 0 | V125: 0 | W125: 0 | X125: 0 | Y125: 0 | Z125: =SUM(Q125:Y125) -> 27080.77 | AA125: 27080.77 | AB125: =SUM(Z125-AA125) -> 0 | AC125: =SUM(P125+AB125) -> 0
C126: MultiState obo Advance America | E126: 17266.91 | F126: 187.06 | G126: 0 | H126: 0 | I126: 0 | J126: 83.33 | K126: 0 | L126: 7 | M126: 0 | N126: =SUM(E126:M126) -> 17544.3 | O126: 17544.3 | P126: =SUM(N126-O126) -> 3.637978807e-12 | Q126: 8033.86 | R126: 6.16 | S126: 0 | T126: 0 | U126: 0 | V126: 0 | W126: 0 | X126: 5 | Y126: 0 | Z126: =SUM(Q126:Y126) -> 8045.02 | AA126: 8045.02 | AB126: =SUM(Z126-AA126) -> -9.094947018e-13 | AC126: =SUM(P126+AB126) -> 2.728484105e-12
C127: MultiState obo Check into Cash | E127: 17266.91 | F127: 187.06 | G127: 0 | H127: 0 | I127: 0 | J127: 83.33 | K127: 0 | L127: 7 | M127: 0 | N127: =SUM(E127:M127) -> 17544.3 | O127: 17544.3 | P127: =SUM(N127-O127) -> 3.637978807e-12 | Q127: 8033.86 | R127: 6.16 | S127: 0 | T127: 0 | U127: 0 | V127: 0 | W127: 0 | X127: 5 | Y127: 0 | Z127: =SUM(Q127:Y127) -> 8045.02 | AA127: 8045.02 | AB127: =SUM(Z127-AA127) -> -9.094947018e-13 | AC127: =SUM(P127+AB127) -> 2.728484105e-12
C128: Multistate obo Community Choice Financ | E128: 17266.91 | F128: 187.06 | G128: 0 | H128: 0 | I128: 0 | J128: 83.33 | K128: 0 | L128: 7 | M128: 0 | N128: =SUM(E128:M128) -> 17544.3 | O128: 17544.3 | P128: =SUM(N128-O128) -> 3.637978807e-12 | Q128: 8033.86 | R128: 6.16 | S128: 0 | T128: 0 | U128: 0 | V128: 0 | W128: 0 | X128: 5 | Y128: 0 | Z128: =SUM(Q128:Y128) -> 8045.02 | AA128: 8045.02 | AB128: =SUM(Z128-AA128) -> -9.094947018e-13 | AC128: =SUM(P128+AB128) -> 2.728484105e-12
C129: New Centaur | E129: 28714.84 | F129: 0 | G129: 0 | H129: 0 | I129: 0 | J129: 62.5 | K129: 0 | L129: 0 | M129: 0 | N129: 28777.34 | O129: 28777.34 | P129: 0 | Q129: 3824.58 | R129: 0 | S129: 0 | T129: 0 | U129: 0 | V129: 0 | W129: 0 | X129: 0 | Y129: 0 | Z129: 3824.58 | AA129: 3824.58 | AB129: 0 | AC129: 0
C130: Pavilion Partners | D130: TO | E130: 30917.39 | F130: 0 | G130: 0 | H130: 0 | I130: 0 | J130: 0 | K130: 0 | L130: 215 | M130: 0 | N130: =SUM(E130:M130) -> 31132.39 | O130: 31132.39 | P130: =SUM(N130-O130) -> 0 | Q130: 401.03 | R130: 0 | S130: 0 | T130: 0 | U130: 0 | V130: 0 | W130: 0 | X130: 7 | Y130: 0 | Z130: =SUM(Q130:Y130) -> 408.03 | AA130: 408.03 | AB130: =SUM(Z130-AA130) -> 0 | AC130: =SUM(P130+AB130) -> 0
C131: Pearson N. America | E131: 15445.1 | F131: 17.6 | G131: 0 | H131: 0 | I131: 0 | J131: 41.67 | K131: 0 | L131: 0 | M131: 0 | N131: =SUM(E131:M131) -> 15504.37 | O131: 15504.37 | P131: =SUM(N131-O131) -> 0 | Q131: 13460.26 | R131: 181.42 | S131: 0 | T131: 0 | U131: 0 | V131: 0 | W131: 53.36 | X131: 10 | Y131: 0 | Z131: =SUM(Q131:Y131) -> 13705.04 | AA131: 13705.04 | AB131: =SUM(Z131-AA131) -> 0 | AC131: =SUM(P131+AB131) -> 0
C132: RELX INC. | E132: 26117.88 | F132: 0 | G132: 0 | H132: 0 | I132: 0 | J132: 0 | K132: 0 | L132: 0 | M132: 0 | N132: 26117.88 | O132: 26117.88 | P132: 0 | Q132: 26104.79 | R132: 0 | S132: 0 | T132: 0 | U132: 0 | V132: 0 | W132: 0 | X132: 10 | Y132: 0 | Z132: 26114.79 | AA132: 26114.79 | AB132: 0 | AC132: 0
C133: Res-Care, Inc. | E133: 27097.08 | F133: 7.89 | G133: 0 | H133: 0 | I133: 0 | J133: 242.86 | K133: 0 | L133: 0 | M133: 0 | N133: =SUM(E133:M133) -> 27347.83 | O133: 27347.83 | P133: =SUM(N133-O133) -> 0 | Q133: 27224.82 | R133: 0 | S133: 0 | T133: 0 | U133: 0 | V133: 0 | W133: 0 | X133: 15 | Y133: 0 | Z133: =SUM(Q133:Y133) -> 27239.82 | AA133: 27239.82 | AB133: =SUM(Z133-AA133) -> 0 | AC133: =SUM(P133+AB133) -> 0
C134: Retired IN Public Employees Assn | E134: 18907.55 | F134: 0 | G134: 0 | H134: 0 | I134: 0 | J134: 0 | K134: 0 | L134: 15 | M134: 0 | N134: 18922.55 | O134: 18922.55 | P134: 0 | Q134: 27185.34 | R134: 0 | S134: 0 | T134: 0 | U134: 0 | V134: 0 | W134: 0 | X134: 17 | Y134: 0 | Z134: 27202.34 | AA134: 27202.34 | AB134: 0 | AC134: 0
C135: St Mary of the Woods College | E135: 22262.1 | F135: 18.71 | G135: 0 | H135: 0 | I135: 0 | J135: 0 | K135: 0 | L135: 1515 | M135: 0 | N135: =SUM(E135:M135) -> 23795.81 | O135: 23795.81 | P135: =SUM(N135-O135) -> -3.637978807e-12 | Q135: 10347.16 | R135: 0 | S135: 0 | T135: 0 | U135: 0 | V135: 0 | W135: 0 | X135: 10 | Y135: 0 | Z135: =SUM(Q135:Y135) -> 10357.16 | AA135: 10357.16 | AB135: =SUM(Z135-AA135) -> 0 | AC135: =SUM(P135+AB135) -> -3.637978807e-12
C136: State of IN Public Emply Defer. Comp. | E136: 24086.8 | F136: 0 | G136: 0 | H136: 0 | I136: 0 | J136: 0 | K136: 0 | L136: 227 | M136: 0 | N136: =SUM(E136:M136) -> 24313.8 | O136: 24313.8 | P136: =SUM(N136-O136) -> 0 | Q136: 7787.76 | R136: 0 | S136: 0 | T136: 0 | U136: 0 | V136: 0 | W136: 0 | X136: 0 | Y136: 0 | Z136: 7787.76 | AA136: 7787.76 | AB136: 0 | AC136: 0
C137: Tax Management Assn, Inc. | E137: 15316.11 | F137: 17.66 | G137: 0 | H137: 0 | I137: 0 | J137: 0 | K137: 0 | L137: 0 | M137: 0 | N137: 15333.77 | O137: 15333.77 | P137: 0 | Q137: 14503.66 | R137: 0 | S137: 0 | T137: 0 | U137: 0 | V137: 0 | W137: 0 | X137: 10 | Y137: 0 | Z137: 14513.66 | AA137: 14513.66 | AB137: 0 | AC137: 0
C138: Teach for America-Indpls | E138: 26144.6 | F138: 0 | G138: 0 | H138: 0 | I138: 0 | J138: 0 | K138: 0 | L138: 10 | M138: 0 | N138: =SUM(E138:M138) -> 26154.6 | O138: 26154.6 | P138: =SUM(N138-O138) -> 0 | Q138: 30899.18 | R138: 0 | S138: 0 | T138: 0 | U138: 0 | V138: 0 | W138: 0 | X138: 10 | Y138: 0 | Z138: 30909.18 | AA138: 30909.18 | AB138: 0 | AC138: 0
C139: Town of Griffith | E139: 39561.45 | F139: 0 | G139: 0 | H139: 0 | I139: 0 | J139: 0 | K139: 0 | L139: 225 | M139: 0 | N139: 39786.45 | O139: 39786.45 | P139: 0 | Q139: 18842.45 | R139: 0 | S139: 0 | T139: 0 | U139: 0 | V139: 0 | W139: 0 | X139: 0 | Y139: 0 | Z139: 18842.45 | AA139: 18842.45 | AB139: 0 | AC139: 0
C140: Town of Munster | E140: 15911.12 | F140: 0 | G140: 0 | H140: 0 | I140: 0 | J140: 0 | K140: 0 | L140: 0 | M140: 0 | N140: 15911.12 | O140: 15911.12 | P140: 0 | Q140: 13259.27 | R140: 170.61 | S140: 0 | T140: 0 | U140: 0 | V140: 0 | W140: 0 | X140: 0 | Y140: 0 | Z140: 13429.88 | AA140: 13429.88 | AB140: 1.818989404e-12 | AC140: 1.818989404e-12
C141: Town of Zionsville | E141: 17541.82 | F141: 96.3 | G141: 0 | H141: 0 | I141: 0 | J141: 99 | K141: 0 | L141: 225 | M141: 0 | N141: =SUM(E141:M141) -> 17962.12 | O141: 17962.12 | P141: =SUM(N141-O141) -> 0 | Q141: 14974.82 | R141: 0 | S141: 0 | T141: 0 | U141: 0 | V141: 0 | W141: 0 | X141: 10 | Y141: 0 | Z141: =SUM(Q141:Y141) -> 14984.82 | AA141: 14984.82 | AB141: =SUM(Z141-AA141) -> 0 | AC141: =SUM(P141+AB141) -> 0
C142: University of Notre Dame du Lac | E142: 86630.87 | F142: 0 | G142: 0 | H142: 0 | I142: 0 | J142: 0 | K142: 0 | L142: 352 | M142: 0 | N142: 86982.87 | O142: 86982.87 | P142: 0 | Q142: 28163.69 | R142: 0 | S142: 0 | T142: 0 | U142: 0 | V142: 0 | W142: 0 | X142: 19 | Y142: 0 | Z142: 28182.69 | AA142: 28182.69 | AB142: 0 | AC142: 0
C143: Vertex Pharma | D143: TO | E143: 3672.2 | F143: 0 | G143: 0 | H143: 0 | I143: 0 | J143: 0 | K143: 0 | L143: 10 | M143: 0 | N143: =SUM(E143:M143) -> 3682.2 | O143: 3682.2 | P143: =SUM(N143-O143) -> 0 | Q143: 1982.97 | R143: 0 | S143: 0 | T143: 0 | U143: 0 | V143: 0 | W143: 0 | X143: 5 | Y143: 0 | Z143: =SUM(Q143:Y143) -> 1987.97 | AA143: 1987.97 | AB143: =SUM(Z143-AA143) -> 0 | AC143: =SUM(P143+AB143) -> 0
C144: Wal-Mart Stores, Inc. | D144: TO | E144: 899.42 | F144: 0 | G144: 0 | H144: 0 | I144: 0 | J144: 0 | K144: 0 | L144: 0 | M144: 0 | N144: 899.42 | O144: 899.42 | P144: 0 | Q144: 82.41 | R144: 0 | S144: 0 | T144: 0 | U144: 0 | V144: 0 | W144: 0 | X144: 0 | Y144: 0 | Z144: 82.41 | AA144: 82.41 | AB144: 0 | AC144: 0
C145: Xerox | E145: 34946.61 | F145: 0 | G145: 0 | H145: 0 | I145: 0 | J145: 311.48 | K145: 0 | L145: 215 | M145: 0 | N145: 35473.09 | O145: 35473.09 | P145: 7.275957614e-12 | Q145: 25525.05 | R145: 0 | S145: 0 | T145: 0 | U145: 0 | V145: 0 | W145: 0 | X145: 10 | Y145: 0 | Z145: 25535.05 | AA145: 25535.05 | AB145: 0 | AC145: 7.275957614e-12
A146: 2016 | B146: Barnett, Thomas D | C146: Roche Diagnostics Corp | E146: 0 | F146: 0 | G146: 0 | H146: 0 | I146: 0 | J146: 0 | K146: 0 | L146: 0 | M146: 0 | N146: 0 | O146: 0 | P146: 0 | Q146: 0 | R146: 0 | S146: 0 | T146: 0 | U146: 0 | V146: 0 | W146: 0 | X146: 0 | Y146: 0 | Z146: 0 | AA146: 0 | AB146: 0 | AC146: 0
A147: 2016 | B147: Barth, John | C147: Coordinated Care Corp IN, Inc. | E147: 0 | F147: 0 | G147: 0 | H147: 0 | I147: 0 | J147: 0 | K147: 0 | L147: 0 | M147: 0 | N147: 0 | O147: 0 | P147: 0 | Q147: 0 | R147: 0 | S147: 0 | T147: 0 | U147: 0 | V147: 0 | W147: 0 | X147: 0 | Y147: 0 | Z147: 0 | AA147: 0 | AB147: 0 | AC147: 0
A148: 2016 | B148: Bauer, Ben | C148: IN Assn of Realtors | E148: 0 | F148: 0 | G148: 0 | H148: 0 | I148: 0 | J148: 0 | K148: 0 | L148: 0 | M148: 0 | N148: 0 | O148: 0 | P148: 0 | Q148: 0 | R148: 0 | S148: 0 | T148: 0 | U148: 0 | V148: 0 | W148: 0 | X148: 0 | Y148: 0 | Z148: 0 | AA148: 0 | AB148: 0 | AC148: 0
A149: 2016 | B149: Bauer, Beth | C149: ACEC IN | E149: 0 | F149: 0 | G149: 0 | H149: 0 | I149: 0 | J149: 0 | K149: 0 | L149: 0 | M149: 0 | N149: 0 | O149: 0 | P149: 0 | Q149: 0 | R149: 0 | S149: 0 | T149: 0 | U149: 0 | V149: 0 | W149: 0 | X149: 0 | Y149: 0 | Z149: 0 | AA149: 0 | AB149: 0 | AC149: 0
A150: 2016 | B150: Bauer, David | C150: Uber Technologies | D150: TO | E150: 0 | F150: 0 | G150: 0 | H150: 0 | I150: 0 | J150: 0 | K150: 0 | L150: 0 | M150: 0 | N150: =SUM(E150:M150) -> 0 | O150: 0 | P150: =SUM(N150-O150) -> 0 | Q150: 0 | R150: 0 | S150: 0 | T150: 0 | U150: 0 | V150: 0 | W150: 0 | X150: 0 | Y150: 0 | Z150: =SUM(Q150:Y150) -> 0 | AA150: 0 | AB150: =SUM(Z150-AA150) -> 0 | AC150: =SUM(P150+AB150) -> 0
A151: 2016 | B151: Baughn, Bradley | C151: IN Petro & Convenience Store Assn | E151: 0 | F151: 0 | G151: 0 | H151: 0 | I151: 0 | J151: 0 | K151: 0 | L151: 0 | M151: 0 | N151: 0 | O151: 0 | P151: 0 | Q151: 0 | R151: 0 | S151: 0 | T151: 0 | U151: 0 | V151: 0 | W151: 0 | X151: 0 | Y151: 0 | Z151: 0 | AA151: 0 | AB151: 0 | AC151: 0
C152: IN Propane Gas Assn | E152: 0 | F152: 0 | G152: 0 | H152: 0 | I152: 0 | J152: 0 | K152: 0 | L152: 0 | M152: 0 | N152: 0 | O152: 0 | P152: 0 | Q152: 0 | R152: 0 | S152: 0 | T152: 0 | U152: 0 | V152: 0 | W152: 0 | X152: 0 | Y152: 0 | Z152: 0 | AA152: 0 | AB152: 0 | AC152: 0
A153: 2016 | B153: Baumruck, Scott | C153: Prof Insurance Agents IN | E153: 0 | F153: 0 | G153: 0 | H153: 0 | I153: 0 | J153: 0 | K153: 0 | L153: 0 | M153: 0 | N153: 0 | O153: 0 | P153: 0 | Q153: 0 | R153: 0 | S153: 0 | T153: 0 | U153: 0 | V153: 0 | W153: 0 | X153: 0 | Y153: 0 | Z153: 0 | AA153: 0 | AB153: 0 | AC153: 0
A154: 2016 | B154: Beanblossom, Sara | C154: IN Afterschool Network | E154: 0 | F154: 0 | G154: 0 | H154: 0 | I154: 0 | J154: 0 | K154: 0 | L154: 0 | M154: 0 | N154: =SUM(E154:M154) -> 0 | O154: 0 | P154: =SUM(N154-O154) -> 0 | Q154: 0 | R154: 0 | S154: 0 | T154: 0 | U154: 0 | V154: 0 | W154: 0 | X154: 0 | Y154: 0 | Z154: =SUM(Q154:Y154) -> 0 | AA154: 0 | AB154: =SUM(Z154-AA154) -> 0 | AC154: =SUM(P154+AB154) -> 0
A155: 2016 | B155: Beaumont, Christopher | C155: IN Credit Union League | E155: 0 | F155: 0 | G155: 0 | H155: 0 | I155: 0 | J155: 0 | K155: 0 | L155: 0 | M155: 0 | N155: 0 | O155: 0 | P155: 0 | Q155: 0 | R155: 0 | S155: 0 | T155: 0 | U155: 0 | V155: 0 | W155: 0 | X155: 0 | Y155: 0 | Z155: 0 | AA155: 0 | AB155: 0 | AC155: 0
A156: 2016 | B156: Beber, Melissa | C156: Grtr Fort Wayne Metro Chamber Alliance | E156: 0 | F156: 0 | G156: 0 | H156: 0 | I156: 0 | J156: 0 | K156: 0 | L156: 0 | M156: 0 | N156: 0 | O156: 0 | P156: 0 | Q156: 0 | R156: 0 | S156: 0 | T156: 0 | U156: 0 | V156: 0 | W156: 0 | X156: 0 | Y156: 0 | Z156: 0 | AA156: 0 | AB156: 0 | AC156: 0
A157: 2016 | B157: Beck, Jim | C157: Alcoa, Inc. | D157: TO | E157: 0 | F157: 0 | G157: 0 | H157: 0 | I157: 0 | J157: 0 | K157: 0 | L157: 0 | M157: 0 | N157: 0 | O157: 0 | P157: 0 | Q157: 0 | R157: 0 | S157: 0 | T157: 0 | U157: 0 | V157: 0 | W157: 0 | X157: 0 | Y157: 0 | Z157: 0 | AA157: 0 | AB157: 0 | AC157: 0
A158: 2016 | B158: Beck, Robin | C158: Ice Miller | E158: 0 | F158: 0 | G158: 0 | H158: 30.52 | I158: 0 | J158: 0 | K158: 0 | L158: 0 | M158: 0 | N158: 30.52 | O158: 30.52 | P158: 0 | Q158: 0 | R158: 0 | S158: 0 | T158: 0 | U158: 0 | V158: 0 | W158: 0 | X158: 0 | Y158: 0 | Z158: 0 | AA158: 0 | AB158: 0 | AC158: 0
A159: 2016 | B159: Beebe, Scherer & Assoc | C159: non client expenses | E159: 0 | F159: 0 | G159: 0 | H159: 228.73 | I159: 0 | J159: 38.82 | K159: 133.77 | L159: 0 | M159: 0 | N159: 401.32 | O159: 0 | P159: 401.32 | Q159: 0 | R159: 0 | S159: 0 | T159: 57.6 | U159: 0 | V159: 0 | W159: 0 | X159: 0 | Y159: 0 | Z159: 57.6 | AA159: 0 | AB159: 57.6 | AC159: 458.92
B160: RNIXE0 12-26-15 | C160: IN Assn for Marriage & Family Therapists | E160: 12.25 | F160: 0 | G160: 0 | H160: 0 | I160: 0 | J160: 0 | K160: 0 | L160: 215 | M160: 0 | N160: 227.25 | O160: 227.25 | P160: 0 | Q160: 0 | R160: 0 | S160: 0 | T160: 0 | U160: 0 | V160: 0 | W160: 0 | X160: 0 | Y160: 0 | Z160: 0 | AA160: 0 | AB160: 0 | AC160: 0
C161: IN Assn Nurse Anesthetists | E161: 26 | F161: 0 | G161: 0 | H161: 0 | I161: 0 | J161: 0 | K161: 0 | L161: 215 | M161: 0 | N161: 241 | O161: 241 | P161: 0 | Q161: 0 | R161: 0 | S161: 0 | T161: 0 | U161: 0 | V161: 0 | W161: 0 | X161: 0 | Y161: 0 | Z161: 0 | AA161: 0 | AB161: 0 | AC161: 0
C162: IN Chptr American Physical Thrpy Assn | E162: 115 | F162: 0 | G162: 0 | H162: 0 | I162: 0 | J162: 0 | K162: 0 | L162: 0 | M162: 0 | N162: 115 | O162: 115 | P162: 0 | Q162: 0 | R162: 0 | S162: 0 | T162: 0 | U162: 0 | V162: 0 | W162: 0 | X162: 0 | Y162: 0 | Z162: 0 | AA162: 0 | AB162: 0 | AC162: 0
C163: IN Dental Hygienists Assn | E163: 120 | F163: 0 | G163: 0 | H163: 0 | I163: 0 | J163: 0 | K163: 0 | L163: 0 | M163: 0 | N163: 120 | O163: 120 | P163: 0 | Q163: 15 | R163: 0 | S163: 0 | T163: 0 | U163: 0 | V163: 0 | W163: 0 | X163: 0 | Y163: 0 | Z163: =SUM(Q163:Y163) -> 15 | AA163: 15 | AB163: =SUM(Z163-AA163) -> 0 | AC163: =SUM(P163+AB163) -> 0
C164: IN Fire Chiefs Assn | E164: 127.5 | F164: 0 | G164: 0 | H164: 0 | I164: 0 | J164: 0 | K164: 0 | L164: 215 | M164: 0 | N164: 342.5 | O164: 342.5 | P164: 0 | Q164: 66.25 | R164: 0 | S164: 0 | T164: 0 | U164: 0 | V164: 0 | W164: 0 | X164: 0 | Y164: 0 | Z164: 66.25 | AA164: 66.25 | AB164: 0 | AC164: 0
C165: IN Health Care Assn | E165: 360 | F165: 0 | G165: 0 | H165: 0 | I165: 0 | J165: 0 | K165: 0 | L165: 0 | M165: 0 | N165: 360 | O165: 360 | P165: 0 | Q165: 0 | R165: 0 | S165: 0 | T165: 0 | U165: 0 | V165: 0 | W165: 0 | X165: 0 | Y165: 0 | Z165: 0 | AA165: 0 | AB165: 0 | AC165: 0
C166: IN Retired Teachers Assn | E166: 975 | F166: 0 | G166: 0 | H166: 12.56 | I166: 0 | J166: 0 | K166: 0 | L166: 0 | M166: 0 | N166: 987.56 | O166: 987.56 | P166: 0 | Q166: 97.5 | R166: 0 | S166: 0 | T166: 0 | U166: 0 | V166: 0 | W166: 0 | X166: 0 | Y166: 0 | Z166: 97.5 | AA166: 97.5 | AB166: 0 | AC166: 0
C167: IN Society of Respiratory Care | E167: 13.2 | F167: 0 | G167: 0 | H167: 0 | I167: 0 | J167: 0 | K167: 0 | L167: 215 | M167: 0 | N167: 228.2 | O167: 228.2 | P167: 0 | Q167: 0 | R167: 0 | S167: 0 | T167: 0 | U167: 0 | V167: 0 | W167: 0 | X167: 0 | Y167: 0 | Z167: 0 | AA167: 0 | AB167: 0 | AC167: 0
C168: IN Speeh Language Hearing Assn | E168: 150 | F168: 0 | G168: 0 | H168: 0 | I168: 0 | J168: 0 | K168: 0 | L168: 115 | M168: 0 | N168: 265 | O168: 265 | P168: 0 | Q168: 0 | R168: 0 | S168: 0 | T168: 0 | U168: 0 | V168: 0 | W168: 0 | X168: 0 | Y168: 0 | Z168: 0 | AA168: 0 | AB168: 0 | AC168: 0
C169: IN Vending Council | E169: 90.6 | F169: 0 | G169: 0 | H169: 12.56 | I169: 0 | J169: 0 | K169: 0 | L169: 0 | M169: 0 | N169: =SUM(E169:M169) -> 103.16 | O169: 103.16 | P169: =SUM(N169-O169) -> 0 | Q169: 45.29 | R169: 0 | S169: 0 | T169: 0 | U169: 0 | V169: 0 | W169: 0 | X169: 0 | Y169: 0 | Z169: 45.29 | AA169: 45.29 | AB169: 0 | AC169: 0
C170: IN Wholesale Distributors Assn | E170: 342.4 | F170: 0 | G170: 0 | H170: 0 | I170: 0 | J170: 0 | K170: 0 | L170: 0 | M170: 0 | N170: 342.4 | O170: 342.4 | P170: 0 | Q170: 57.1 | R170: 0 | S170: 0 | T170: 0 | U170: 0 | V170: 0 | W170: 0 | X170: 0 | Y170: 0 | Z170: 57.1 | AA170: 57.1 | AB170: 0 | AC170: 0
A171: 2016 | B171: Beebe, Steven | C171: Beebe Scherer & Assoc. | E171: 0 | F171: 0 | G171: 0 | H171: 0 | I171: 0 | J171: 0 | K171: 0 | L171: 0 | M171: 0 | N171: 0 | O171: 0 | P171: 0 | Q171: 0 | R171: 0 | S171: 0 | T171: 0 | U171: 0 | V171: 0 | W171: 0 | X171: 0 | Y171: 0 | Z171: 0 | AA171: 0 | AB171: 0 | AC171: 0
A172: 2016 | B172: Belch, Louis | C172: The Corydon Group | E172: 0 | F172: 0 | G172: 0 | H172: 1246.6 | I172: 0 | J172: 1277.72 | K172: 1385.06 | L172: 0 | M172: 0 | N172: 3909.38 | O172: 3909.38 | P172: -4.547473509e-13 | Q172: 0 | R172: 0 | S172: 0 | T172: 23.57 | U172: 0 | V172: 0 | W172: 675.55 | X172: 0 | Y172: 0 | Z172: 699.12 | AA172: 699.12 | AB172: 0 | AC172: -4.547473509e-13
A173: 2016 | B173: Belden, Wayne | C173: IN Farm Bureau Inc. | E173: 0 | F173: 0 | G173: 0 | H173: 0 | I173: 0 | J173: 0 | K173: 0 | L173: 0 | M173: 0 | N173: 0 | O173: 0 | P173: 0 | Q173: 0 | R173: 0 | S173: 0 | T173: 0 | U173: 0 | V173: 0 | W173: 0 | X173: 0 | Y173: 0 | Z173: 0 | AA173: 0 | AB173: 0 | AC173: 0
A174: 2016 | B174: Bell, Catilin | C174: Hoosiers for Quality Education | D174: TA | E174: 0 | F174: 0 | G174: 0 | H174: 0 | I174: 0 | J174: 0 | K174: 0 | L174: 0 | M174: 0 | N174: =SUM(E174:M174) -> 0 | O174: 0 | P174: =SUM(N174-O174) -> 0 | Z174: =SUM(Q174:Y174) -> 0 | AB174: =SUM(Z174-AA174) -> 0 | AC174: =SUM(P174+AB174) -> 0
C175: Institute Quality Education | E175: 0 | F175: 0 | G175: 0 | H175: 0 | I175: 0 | J175: 0 | K175: 0 | L175: 0 | M175: 0 | N175: 0 | O175: 0 | P175: 0 | Q175: 0 | R175: 0 | S175: 0 | T175: 0 | U175: 0 | V175: 0 | W175: 0 | X175: 0 | Y175: 0 | Z175: 0 | AA175: 0 | AB175: 0 | AC175: 0
A176: 2016 | B176: Bell, Jason | C176: IN Trial Lawyers Assn | E176: 0 | F176: 0 | G176: 0 | H176: 0 | I176: 0 | J176: 0 | K176: 0 | L176: 0 | M176: 0 | N176: 0 | O176: 0 | P176: 0 | Q176: 0 | R176: 0 | S176: 0 | T176: 0 | U176: 0 | V176: 0 | W176: 0 | X176: 0 | Y176: 0 | Z176: 0 | AA176: 0 | AB176: 0 | AC176: 0
A177: 2016 | B177: Bell, Matt | C177: Catalyst Public Affairs Grp | E177: 0 | F177: 0 | G177: 0 | H177: 0 | I177: 0 | J177: 0 | K177: 0 | L177: 0 | M177: 0 | N177: 0 | O177: 0 | P177: 0 | Q177: 0 | R177: 0 | S177: 0 | T177: 0 | U177: 0 | V177: 0 | W177: 0 | X177: 0 | Y177: 0 | Z177: 0 | AA177: 0 | AB177: 0 | AC177: 0
A178: 2016 | B178: Benen, Sandie | C178: GlaxoSmithKline | E178: 0 | F178: 0 | G178: 0 | H178: 31.47 | I178: 0 | J178: 0 | K178: 0 | L178: 0 | M178: 0 | N178: 31.47 | O178: 31.47 | P178: 0 | Z178: 0 | AB178: 0 | AC178: 0
A179: 2016 | B179: Bennett, Patrick | C179: PKB Consulting LLC | E179: 0 | F179: 0 | G179: 0 | H179: 0 | I179: 0 | J179: 0 | K179: 0 | L179: 200 | M179: 0 | N179: 200 | O179: 0 | P179: 200 | Q179: 0 | R179: 0 | S179: 0 | T179: 0 | U179: 0 | V179: 0 | W179: 0 | X179: 0 | Y179: 0 | Z179: 0 | AA179: 0 | AB179: 0 | AC179: 200
A180: 2016 | B180: Berger, Andrew | C180: IN Manufacturers Assn | E180: 0 | F180: 0 | G180: 0 | H180: 19.5 | I180: 0 | J180: 0 | K180: 0 | L180: 0 | M180: 0 | N180: 19.5 | O180: 0 | P180: 19.5 | Q180: 0 | R180: 0 | S180: 0 | T180: 78.71 | U180: 0 | V180: 0 | W180: 0 | X180: 0 | Y180: 0 | Z180: 78.71 | AA180: 0 | AB180: 78.71 | AC180: 98.21
A181: 2016 | B181: Bergsma, Brian | C181: IN Michigan Power | E181: 0 | F181: 0 | G181: 0 | H181: 0 | I181: 0 | J181: 0 | K181: 0 | L181: 0 | M181: 0 | N181: 0 | O181: 0 | P181: 0 | Q181: 0 | R181: 0 | S181: 0 | T181: 0 | U181: 0 | V181: 0 | W181: 0 | X181: 0 | Y181: 0 | Z181: 0 | AA181: 0 | AB181: 0 | AC181: 0
A182: 2016 | B182: Berkshire, Lacey | C182: IN Credit Union League | E182: 0 | F182: 0 | G182: 0 | H182: 0 | I182: 0 | J182: 0 | K182: 0 | L182: 0 | M182: 0 | N182: =SUM(E182:M182) -> 0 | O182: 0 | P182: =SUM(N182-O182) -> 0 | Q182: 0 | R182: 0 | S182: 0 | T182: 0 | U182: 0 | V182: 0 | W182: 0 | X182: 0 | Y182: 0 | Z182: =SUM(Q182:Y182) -> 0 | AA182: 0 | AB182: =SUM(Z182-AA182) -> 0 | AC182: =SUM(P182+AB182) -> 0
A183: 2016 | B183: Berron, Karl | C183: IN Assn of Realtors, Inc. | E183: 0 | F183: 0 | G183: 0 | H183: 0 | I183: 0 | J183: 0 | K183: 0 | L183: 0 | M183: 0 | N183: 0 | O183: 0 | P183: 0 | Q183: 0 | R183: 0 | S183: 0 | T183: 0 | U183: 0 | V183: 0 | W183: 0 | X183: 0 | Y183: 0 | Z183: 0 | AA183: 0 | AB183: 0 | AC183: 0
A184: 2016 | B184: Berry, Laura | C184: IN Coalition against Domestic Violence | E184: 0 | F184: 0 | G184: 0 | H184: 0 | I184: 0 | J184: 0 | K184: 0 | L184: 0 | M184: 0 | N184: =SUM(E184:M184) -> 0 | O184: 0 | P184: =SUM(N184-O184) -> 0 | Q184: 0 | R184: 0 | S184: 0 | T184: 0 | U184: 0 | V184: 0 | W184: 0 | X184: 0 | Y184: 0 | Z184: =SUM(Q184:Y184) -> 0 | AA184: 0 | AB184: =SUM(Z184-AA184) -> 0 | AC184: =SUM(P184+AB184) -> 0
A185: 2016 | B185: Bess, Scott | C185: Goodwill Education Initiatives | D185: TO | E185: 0 | F185: 0 | G185: 0 | H185: 0 | I185: 0 | J185: 0 | K185: 0 | L185: 0 | M185: 0 | N185: 0 | O185: 0 | P185: 0 | Q185: 0 | R185: 0 | S185: 0 | T185: 0 | U185: 0 | V185: 0 | W185: 0 | X185: 0 | Y185: 0 | Z185: 0 | AA185: 0 | AB185: 0 | AC185: 0
A186: 2016 | B186: Bess, Todd | C186: IN School Principals Assn | E186: 0 | F186: 0 | G186: 0 | H186: 0 | I186: 0 | J186: 0 | K186: 0 | L186: 0 | M186: 0 | N186: 0 | O186: 0 | P186: 0 | Q186: 0 | R186: 0 | S186: 0 | T186: 0 | U186: 0 | V186: 0 | W186: 0 | X186: 0 | Y186: 0 | Z186: 0 | AA186: 0 | AB186: 0 | AC186: 0
A187: 2016 | B187: Biberstine, Michael | C187: CivicPoint | E187: 0 | F187: 0 | G187: 0 | H187: 0 | I187: 0 | J187: 0 | K187: 0 | L187: 0 | M187: 0 | N187: 0 | O187: 0 | P187: 0 | Q187: 0 | R187: 0 | S187: 0 | T187: 0 | U187: 0 | V187: 0 | W187: 0 | X187: 0 | Y187: 0 | Z187: 0 | AA187: 0 | AB187: 0 | AC187: 0
A188: 2016 | B188: Bingham Greenebaum Doll | C188: non client expenses | E188: 361.2 | F188: 0 | G188: 0 | H188: 0 | I188: 0 | J188: 2250 | K188: 0 | L188: 2235 | M188: 0 | N188: 4846.2 | O188: 0 | P188: 4846.2 | Q188: 1321.7 | R188: 0 | S188: 0 | T188: 0 | U188: 0 | V188: 0 | W188: 0 | X188: 66 | Y188: 0 | Z188: 1387.7 | AA188: 0 | AB188: 1387.7 | AC188: 6233.9
B189: RT6Y9P | C189: Capital Imprv Board of Mgrs Marion Co | E189: 335.4 | F189: 0 | G189: 0 | H189: 0 | I189: 0 | J189: 0 | K189: 0 | L189: 0 | M189: 0 | N189: 335.4 | O189: 335.4 | P189: 0 | Q189: 0 | R189: 0 | S189: 0 | T189: 0 | U189: 0 | V189: 0 | W189: 0 | X189: 0 | Y189: 0 | Z189: 0 | AA189: 0 | AB189: 0 | AC189: 0
C190: City of Lawrenceburg | D190: TA | E190: 0 | F190: 0 | G190: 0 | H190: 0 | I190: 0 | J190: 0 | K190: 0 | L190: 0 | M190: 0 | N190: 0 | O190: 0 | P190: 0 | Z190: 0 | AB190: 0 | AC190: 0
C191: Full House Resorts | D191: p2 | N191: =SUM(E191:M191) -> 0 | O191: 0 | P191: =SUM(N191-O191) -> 0 | Q191: 609.18 | R191: 0 | S191: 0 | T191: 0 | U191: 0 | V191: 0 | W191: 0 | X191: 0 | Y191: 0 | Z191: 609.18 | AA191: 0 | AB191: 609.18 | AC191: 609.18
C192: Goodwill Education Initiatives | E192: 0 | F192: 0 | G192: 0 | H192: 0 | I192: 0 | J192: 0 | K192: 0 | L192: 0 | M192: 0 | N192: 0 | O192: 0 | P192: 0 | Q192: 1614 | R192: 0 | S192: 0 | T192: 0 | U192: 0 | V192: 0 | W192: 0 | X192: 133 | Y192: 0 | Z192: =SUM(Q192:Y192) -> 1747 | AA192: 1747 | AB192: =SUM(Z192-AA192) -> 0 | AC192: =SUM(P192+AB192) -> 0
C193: Midwest Fertility Specialists | D193: TA | E193: 25.8 | F193: 0 | G193: 0 | H193: 0 | I193: 0 | J193: 0 | K193: 0 | L193: 0 | M193: 0 | N193: 25.8 | O193: 25.8 | P193: 0 | Z193: 0 | AB193: 0 | AC193: 0
A194: 2016 | B194: Blackwell, Leo | C194: IN Fraternal Order of Police | E194: 0 | F194: 0 | G194: 0 | H194: 0 | I194: 0 | J194: 0 | K194: 0 | L194: 0 | M194: 0 | N194: =SUM(E194:M194) -> 0 | O194: 0 | P194: =SUM(N194-O194) -> 0 | Q194: 0 | R194: 0 | S194: 0 | T194: 0 | U194: 0 | V194: 0 | W194: 0 | X194: 0 | Y194: 0 | Z194: 0 | AA194: 0 | AB194: 0 | AC194: 0
A195: 2016 | B195: Blair, Katie | C195: ACLU of IN | E195: 0 | F195: 0 | G195: 0 | H195: 0 | I195: 0 | J195: 0 | K195: 0 | L195: 0 | M195: 0 | N195: 0 | O195: 0 | P195: 0 | Q195: 0 | R195: 0 | S195: 0 | T195: 0 | U195: 0 | V195: 0 | W195: 0 | X195: 0 | Y195: 0 | Z195: 0 | AA195: 0 | AB195: 0 | AC195: 0
A196: 2016 | B196: Block, Matthew | C196: Pinnacle Entertainment | E196: 0 | F196: 0 | G196: 0 | H196: 0 | I196: 0 | J196: 0 | K196: 0 | L196: 0 | M196: 0 | N196: 0 | O196: 0 | P196: 0 | Q196: 0 | R196: 0 | S196: 0 | T196: 0 | U196: 0 | V196: 0 | W196: 0 | X196: 0 | Y196: 0 | Z196: 0 | AA196: 0 | AB196: 0 | AC196: 0
A197: 2016 | B197: Blunt, Camille | C197: See Clients Bose Public Affairs Group LLC | D197: TA | E197: 0 | F197: 0 | G197: 0 | H197: 0 | I197: 0 | J197: 0 | K197: 0 | L197: 0 | M197: 0 | N197: 0 | O197: 0 | P197: 0 | Z197: 0 | AB197: 0 | AC197: 0
C198: Consolidated City of Indpls Marion Co | D198: TO | E198: 0 | F198: 0 | G198: 0 | H198: 0 | I198: 0 | J198: 0 | K198: 0 | L198: 0 | M198: 0 | N198: =SUM(E198:M198) -> 0 | O198: 0 | P198: =SUM(N198-O198) -> 0 | Q198: 0 | R198: 0 | S198: 0 | T198: 0 | U198: 0 | V198: 0 | W198: 0 | X198: 0 | Y198: 0 | Z198: =SUM(Q198:Y198) -> 0 | AA198: 0 | AB198: =SUM(Z198-AA198) -> 0 | AC198: =SUM(P198+AB198) -> 0
A199: 2016 | B199: Bohlander, Gregory | C199: IN Farm Bureau Inc. | E199: 0 | F199: 0 | G199: 0 | H199: 0 | I199: 0 | J199: 0 | K199: 0 | L199: 0 | M199: 0 | N199: 0 | O199: 0 | P199: 0 | Q199: 0 | R199: 0 | S199: 0 | T199: 0 | U199: 0 | V199: 0 | W199: 0 | X199: 0 | Y199: 0 | Z199: 0 | AA199: 0 | AB199: 0 | AC199: 0
A200: 2016 | B200: Boles, J. Douglas | C200: Indpls Motor Speedway | E200: 0 | F200: 0 | G200: 0 | H200: 0 | I200: 0 | J200: 0 | K200: 0 | L200: 0 | M200: 0 | N200: 0 | O200: 0 | P200: 0 | Q200: 0 | R200: 0 | S200: 0 | T200: 0 | U200: 0 | V200: 0 | W200: 0 | X200: 0 | Y200: 0 | Z200: 0 | AA200: 0 | AB200: 0 | AC200: 0
A201: 2016 | B201: Bolinger, Gary M. | C201: IN CPA Society | E201: 0 | F201: 0 | G201: 0 | H201: 0 | I201: 0 | J201: 0 | K201: 0 | L201: 0 | M201: 0 | N201: 0 | O201: 0 | P201: 0 | Q201: 0 | R201: 0 | S201: 0 | T201: 0 | U201: 0 | V201: 0 | W201: 0 | X201: 0 | Y201: 0 | Z201: 0 | AA201: 0 | AB201: 0 | AC201: 0
A202: 2016 | B202: Bond, Jon | C202: Lewis Kappes Governmental Relations Group | E202: 0 | F202: 0 | G202: 0 | H202: 0 | I202: 0 | J202: 0 | K202: 0 | L202: 0 | M202: 0 | N202: 0 | O202: 0 | P202: 0 | Q202: 0 | R202: 0 | S202: 0 | T202: 0 | U202: 0 | V202: 0 | W202: 0 | X202: 0 | Y202: 0 | Z202: 0 | AA202: 0 | AB202: 0 | AC202: 0
... 1324 more rows

Sheet Sheet2

Sheet Sheet3
